Workbook

Sheet Main
A1: Ammonia PFR Simulation | F1: Rgas | G1: 8.314 | H1: kJ/kmol/K
F2: Rgas2 | G2: 0.082057 | H2: atm*m3/kmol/K | N2: from Hysys molar enthalpies | T2: Feed | W2: Heat Capacity - coefficients for kJ/mol/K | Z2: Fit of Hysys properties at 150 atm | AD2: Pitzer Correlation for Pressure Correction of Heat of Reaction | AJ2: Binary Interaction Matrix | AQ2: Critical Temperature K | AR2: Critical Pressure kPa
A3: Feed Conditions | I3: Kinetics | N3: Heat of Reaction | R3: Molecular Weights | T3: Mass Flow Rates | X3: a | Y3: b | Z3: c | AA3: d | AB3: e | AE3: Tc (K) | AF3: Pc (atm) | AG3: Pc (kPa) | AH3: Ω | AK3: N2 | AL3: H2 | AM3: NH3 | AN3: Ar | AO3: CH4 | AQ3: 126.2 | AR3: =33.5*101.325 -> 3394.3875
A4: N2 | B4: 12348 | C4: kmol/h | E4: Pressure | F4: 150 | G4: atm | I4: Forward | N4: aa | O4: -193144.5182 | R4: N2 | S4: 28.0134 | T4: =FeedN2*MW_N2 -> 345909.4632 | U4: kg/h | W4: N2 | X4: 40.442 | Y4: -35.279 | Z4: 46.918 | AA4: -19.41 | AB4: 0 | AD4: NH3 | AE4: 405.6 | AF4: 112.5 | AG4: =AF4*101.325 -> 11399.0625 | AH4: 0.25 | AJ4: N2 | AK4: 0 | AL4: -0.036 | AM4: 0.222 | AN4: 0 | AO4: 0.036 | AQ4: 33.19 | AR4: =12.8*101.325 -> 1296.96
A5: H2 | B5: 37044 | E5: Temperature | F5: 270 | G5: degC | I5: k0f | J5: 10000 | K5: kmol/m3/s/atm^2 | N5: bb | O5: 484033.6316 | R5: H2 | S5: 2.016 | T5: =FeedH2*MW_H2 -> 74680.704 | W5: H2 | X5: 28.75 | Y5: 1.86 | Z5: 0 | AA5: 0 | AB5: 0 | AD5: N2 | AE5: 126.2 | AF5: 33.5 | AG5: =AF5*101.325 -> 3394.3875 | AH5: 0.04 | AJ5: H2 | AK5: -0.036 | AL5: 0 | AM5: 0 | AN5: 0 | AO5: 0.202 | AQ5: 405.65 | AR5: =111.3*101.325 -> 11277.4725
A6: Ar | B6: 12391 | E6: Heat of Reaction | F6: =HtRxn(FeedT) -> -107815.8547 | G6: kJ/kmol | J6: =J5*3600 -> 36000000 | K6: kmol/m3/h/atm^2 | N6: cc | O6: -994400.3268 | R6: NH3 | S6: 17.02 | T6: 0 | W6: NH3 | X6: 1088.5 | Y6: -5691.4 | Z6: 11787 | AA6: -10900 | AB6: 3801.6 | AD6: H2 | AE6: 33.2 | AF6: 12.8 | AG6: 1296.96 | AH6: 0 | AJ6: NH3 | AK6: 0.222 | AL6: 0 | AM6: 0 | AN6: 0 | AO6: 0 | AQ6: 150.86 | AR6: =48.7*100 -> 4870
A7: CH4 | B7: 5652 | I7: Ef | J7: 91000 | K7: kJ/kmol | N7: dd | O7: 880535.7195 | R7: Ar | S7: 39.948 | T7: =FeedAr*MW_Ar -> 494995.668 | W7: Ar | X7: 36.819 | Y7: -53.01 | Z7: 63.973 | AA7: -27.022 | AB7: 0 | AJ7: Ar | AK7: 0 | AL7: 0 | AM7: 0 | AN7: 0 | AO7: 0.023 | AQ7: 190.564 | AR7: =45.8*101.325 -> 4640.685
I8: Reverse | N8: ee | O8: -290784.0951 | R8: CH4 | S8: 16.043 | T8: =FeedCH4*MW_CH4 -> 90675.036 | W8: CH4 | X8: 24.709 | Y8: 50.297 | Z8: 0 | AA8: 0 | AB8: 0 | AD8: Pitzer Acentric Factor | AJ8: CH4 | AK8: 0.036 | AL8: 0.202 | AM8: 0 | AN8: 0.023 | AO8: 0
B9: Void Fraction | C9: 0.4 | I9: k0r | J9: 13000000000 | K9: kmol/m3/s/atm | T9: =SUM(T4:T8) -> 1006260.871 | AC9: N2 | AD9: 0.039
B10: Particle Diameter | C10: 0.001 | D10: m | J10: =J9*3600 -> 46800000000000 | K10: kmol/m3/h/atm | O10: Kinematic viscosity | P10: 0.5075 | Q10: cSt | S10: Mass Flux | T10: =T9/Ar/3600 -> 39.5435535 | U10: kg/s/m2 | AC10: H2 | AD10: -0.216
B11: Reactor Diameter | C11: 3 | D11: m | F11: ReactorX-sect Area | G11: =PI()*Dr^2/4 -> 7.068583471 | H11: m2 | I11: Er | J11: 141000 | K11: kJ/kmol | P11: =P10*0.01 -> 0.005075 | Q11: St | Z11: Final Temperature | AA11: =J7085 -> 415.6884596 | AC11: NH3 | AD11: 0.25
B12: Reactor Length | C12: 1 | D12: m | F12: Reactor Volume | G12: =Ar*Lr -> 7.068583471 | H12: m3 | P12: =P11*P13 -> 5.075e-07 | Q12: m2/s | Z12: Final Comversion | AA12: =AC7085 -> 0.2163213143 | AC12: Ar | AD12: 0.001
O13: stoke | P13: 0.0001 | Q13: m2/s | AC13: CH4 | AD13: 0.011
C14: Molar Flow Rates - kgmol/h | K14: Partial Pressure - atm | P14: Reaction Rates - kmol/m3/h | R14: N2 derivative | S14: Ergun Equation for Pressure Drop | Y14: Energy Balance
B15: Volume (m3) | C15: N2 | D15: H2 | E15: NH3 | F15: Ar | G15: CH4 | H15: Total | I15: Pressure (atm) | J15: Temp- erature (degC) | K15: N2 | L15: H2 | M15: NH3 | N15: Ar | O15: CH4 | P15: Forward | Q15: Reverse | R15: dFN2/dV | S15: MW avg | T15: Density (kg/m3) | U15: Viscosity (Pa*s) | V15: dP/dz (Pa/m) | W15: dP/dV (Pa/m3) | X15: dP/dV (atm/m3) | Y15: Heat of Reaction (kJ/kmol) | Z15: dH/dV | AA15: H | AB15: FindT | AC15: Conversion (N2 Basis)
B16: 0 | C16: =FeedN2 -> 12348 | D16: =FeedH2 -> 37044 | E16: 0 | F16: =FeedAr -> 12391 | G16: =FeedCH4 -> 5652 | H16: =SUM(C16:G16) -> 67435 | I16: =FeedP -> 150 | J16: =FeedT -> 270 | K16: =C16/$H16*$I16 -> 27.46644917 | L16: =D16/$H16*$I16 -> 82.39934752 | M16: 0 | N16: 27.56209683 | O16: 12.57210647 | P16: =k0f*EXP(-Ef/Rgas/(J16+273.15))*K16 ^ 0.5 * L16 ^ 1.5 -> 249.9305477 | Q16: =k0r*EXP(-Er/Rgas/(J16+273.15))*M16 -> 0 | R16: =-eps*(P16-Q16) -> -99.97221907 | S16: =C16/H16*MW_N2+D16/H16*MW_H2+E16/H16*MW_NH3+F16/H16*MW_Ar+G16/H16*MW_CH4 -> 14.92193774 | T16: =S16/SpecVol(J16,I16,C16:G16,w,Tc,Pc,K) -> 48.12447067 | U16: =$P$12*T16 -> 2.442316886e-05 | V16: =-(150*(1-eps)/Dp/G0*U16+7/4)*(1-eps)/eps^3/Dp/T16*G0^2 -> -550015.5674 | W16: =V16/Ar -> -77811.28563 | X16: =W16/101325 -> -0.767937682 | Y16: =HtRxnP(J16,I16) -> -114646.0589 | Z16: =(P16-Q16)*(-Y16)*eps -> 11461420.91 | AA16: =J16*(C16*HtCap("N2",J16)+D16*HtCap("H2",J16)+E16*HtCap("NH3",J16)+F16*HtCap("Ar",J16)+G16*HtCap("CH4",J16)) -> 559287741.6 | AB16: =FindT(AA16,J16+2,C16,D16,E16,F16,G16) -> 270 | AC16: =(FeedN2-C16)/FeedN2 -> 0
B17: 0.001 | C17: =C16+R16*(B17-B16) -> 12347.90003 | D17: =FeedH2-3*(FeedN2-C17) -> 37043.70008 | E17: =2*(FeedN2-C17) -> 0.1999444382 | F17: =F16 -> 12391 | G17: =G16 -> 5652 | H17: =SUM(C17:G17) -> 67434.80006 | I17: =I16+X16*(B17-B16) -> 149.9992321 | J17: =AB17 -> 270.0054097 | K17: =C17/$H17*$I17 -> 27.46616762 | L17: =D17/$H17*$I17 -> 82.39850286 | M17: =E17/$H17*$I17 -> 0.0004447482925 | N17: =F17/$H17*$I17 -> 27.56203745 | O17: =G17/$H17*$I17 -> 12.57207939 | P17: =k0f*EXP(-Ef/Rgas/(J17+273.15))*K17 ^ 0.5 * L17 ^ 1.5 -> 249.9755906 | Q17: 0.0005728754955 | R17: -99.99000709 | S17: 14.92198195 | T17: 48.12391405 | U17: =$P$12*T17 -> 2.442288638e-05 | V17: =-(150*(1-eps)/Dp/G0*U17+7/4)*(1-eps)/eps^3/Dp/T17*G0^2 -> -550021.7333 | W17: -77812.15792 | X17: =W17/101325 -> -0.7679462908 | Y17: =HtRxnP(J17,I17) -> -114645.9299 | Z17: =(P17-Q17)*(-Y17)*eps -> 11463447.34 | AA17: =AA16+Z16*(B17-B16) -> 559299203 | AB17: =FindT(AA17,AB16,C17,D17,E17,F17,G17) -> 270.0054097 | AC17: 8.096227654e-06
B18: 0.002 | C18: =C17+R17*(B18-B17) -> 12347.80004 | D18: =FeedH2-3*(FeedN2-C18) -> 37043.40011 | E18: =2*(FeedN2-C18) -> 0.3999244523 | F18: =F17 -> 12391 | G18: =G17 -> 5652 | H18: =SUM(C18:G18) -> 67434.60008 | I18: =I17+X17*(B18-B17) -> 149.9984641 | J18: =AB18 -> 270.0108204 | K18: =C18/$H18*$I18 -> 27.46588604 | L18: =D18/$H18*$I18 -> 82.39765812 | M18: =E18/$H18*$I18 -> 0.0008895738026 | N18: =F18/$H18*$I18 -> 27.56197808 | O18: =G18/$H18*$I18 -> 12.5720523 | P18: =k0f*EXP(-Ef/Rgas/(J18+273.15))*K18 ^ 0.5 * L18 ^ 1.5 -> 250.0206492 | Q18: =k0r*EXP(-Er/Rgas/(J18+273.15))*M18 -> 0.00114620691 | R18: =-eps*(P18-Q18) -> -100.0078012 | S18: =C18/H18*MW_N2+D18/H18*MW_H2+E18/H18*MW_NH3+F18/H18*MW_Ar+G18/H18*MW_CH4 -> 14.92202617 | T18: =S18/SpecVol(J18,I18,C18:G18,w,Tc,Pc,K) -> 48.12335738 | U18: =$P$12*T18 -> 2.442260387e-05 | V18: =-(150*(1-eps)/Dp/G0*U18+7/4)*(1-eps)/eps^3/Dp/T18*G0^2 -> -550027.8998 | W18: =V18/Ar -> -77813.03031 | X18: =W18/101325 -> -0.7679549006 | Y18: =HtRxnP(J18,I18) -> -114645.8009 | Z18: 11465474.46 | AA18: =AA17+Z17*(B18-B17) -> 559310666.5 | AB18: =FindT(AA18,AB17,C18,D18,E18,F18,G18) -> 270.0108204 | AC18: 1.619389587e-05
B19: 0.003 | C19: 12347.70003 | D19: 37043.10009 | E19: 0.5999400547 | F19: 12391 | G19: 5652 | H19: 67434.40006 | I19: 149.9976962 | J19: 270.0162321 | K19: 27.46560444 | L19: 82.39681331 | M19: 0.001334476557 | N19: 27.56191872 | O19: 12.57202523 | P19: 250.0657234 | Q19: 0.001719994624 | R19: -100.0256014 | S19: 14.9220704 | T19: 48.12280066 | U19: 2.442232133e-05 | V19: -550034.0671 | W19: -77813.90279 | X19: -0.7679635114 | Y19: -114645.6719 | Z19: 11467502.27 | AA19: 559322132 | AB19: 270.0162321 | AC19: 2.429300513e-05
B20: 0.004 | C20: 12347.6 | D20: 37042.80001 | E20: 0.7999912574 | F20: 12391 | G20: 5652 | H20: 67434.20001 | I20: 149.9969282 | J20: 270.0216448 | K20: 27.4653228 | L20: 82.39596841 | M20: 0.001779456584 | N20: 27.56185937 | O20: 12.57199816 | P20: 250.1108133 | Q20: 0.002294239017 | R20: -100.0434076 | S20: 14.92211463 | T20: 48.12224388 | U20: 2.442203877e-05 | V20: -550040.235 | W20: -77814.77538 | X20: -0.7679721232 | Y20: -114645.5428 | Z20: 11469530.77 | AA20: 559333599.5 | AB20: 270.0216448 | AC20: 3.239355594e-05
B21: 0.005 | C21: 12347.49996 | D21: 37042.49988 | E21: 1.000078073 | F21: 12391 | G21: 5652 | H21: 67433.99992 | I21: 149.9961602 | J21: 270.0270584 | K21: 27.46504115 | L21: 82.39512344 | M21: 0.00222451391 | N21: 27.56180003 | O21: 12.57197109 | P21: 250.1559188 | Q21: 0.002868940471 | R21: -100.0612199 | S21: 14.92215888 | T21: 48.12168706 | U21: 2.442175618e-05 | V21: -550046.4037 | W21: -77815.64807 | X21: -0.767980736 | Y21: -114645.4138 | Z21: 11471559.97 | AA21: 559345069 | AB21: 270.0270584 | AC21: 4.049554878e-05
B22: 0.006 | C22: 12347.3999 | D22: 37042.1997 | E22: 1.200200513 | F22: 12391 | G22: 5652 | H22: 67433.7998 | I22: 149.9953922 | J22: 270.032473 | K22: 27.46475946 | L22: 82.39427839 | M22: 0.002669648562 | N22: 27.56174071 | O22: 12.57194403 | P22: 250.20104 | Q22: 0.003444099366 | R22: -100.0790384 | S22: 14.92220313 | T22: 48.12113019 | U22: 2.442147357e-05 | V22: -550052.5731 | W22: -77816.52086 | X22: -0.7679893497 | Y22: -114645.2848 | Z22: 11473589.85 | AA22: 559356540.6 | AB22: 270.032473 | AC22: 4.859898415e-05
B23: 0.007 | C23: 12347.29982 | D23: 37041.89946 | E23: 1.400358589 | F23: 12391 | G23: 5652 | H23: 67433.59964 | I23: 149.9946243 | J23: 270.0378886 | K23: 27.46447775 | L23: 82.39343326 | M23: 0.003114860567 | N23: 27.5616814 | O23: 12.57191698 | P23: 250.2461769 | Q23: 0.004019716083 | R23: -100.0968629 | S23: 14.92224739 | T23: 48.12057326 | U23: 2.442119093e-05 | V23: -550058.7432 | W23: -77817.39375 | X23: -0.7679979645 | Y23: -114645.1557 | Z23: 11475620.43 | AA23: 559368014.1 | AB23: 270.0378886 | AC23: 5.670386254e-05
B24: 0.008 | C24: 12347.19972 | D24: 37041.59917 | E24: 1.600552315 | F24: 12391 | G24: 5652 | H24: 67433.39945 | I24: 149.9938563 | J24: 270.0433052 | K24: 27.46419602 | L24: 82.39258805 | M24: 0.003560149953 | N24: 27.56162211 | O24: 12.57188993 | P24: 250.2913295 | Q24: 0.004595791005 | R24: -100.1146935 | S24: 14.92229166 | T24: 48.12001628 | U24: 2.442090826e-05 | V24: -550064.914 | W24: -77818.26674 | X24: -0.7680065802 | Y24: -114645.0267 | Z24: 11477651.7 | AA24: 559379489.8 | AB24: 270.0433052 | AC24: 6.481018444e-05
B25: 0.009 | C25: 12347.09961 | D25: 37041.29883 | E25: 1.800781702 | F25: 12391 | G25: 5652 | H25: 67433.19922 | I25: 149.9930883 | J25: 270.0487227 | K25: 27.46391426 | L25: 82.39174277 | M25: 0.004005516747 | N25: 27.56156282 | O25: 12.57186289 | P25: 250.3364978 | Q25: 0.005172324513 | R25: -100.1325302 | S25: 14.92233594 | T25: 48.11945925 | U25: 2.442062557e-05 | V25: -550071.0855 | W25: -77819.13983 | X25: -0.768015197 | Y25: -114644.8976 | Z25: 11479683.67 | AA25: 559390967.4 | AB25: 270.0487227 | AC25: 7.291795036e-05
B26: 0.01 | C26: 12346.99948 | D26: 37040.99843 | E26: 2.001046762 | F26: 12391 | G26: 5652 | H26: 67432.99895 | I26: 149.9923202 | J26: 270.0541412 | K26: 27.46363247 | L26: 82.3908974 | M26: 0.004450960975 | N26: 27.56150355 | O26: 12.57183585 | P26: 250.3816818 | Q26: 0.005749316991 | R26: -100.150373 | S26: 14.92238022 | T26: 48.11890217 | U26: 2.442034285e-05 | V26: -550077.2577 | W26: -77820.01302 | X26: -0.7680238147 | Y26: -114644.7685 | Z26: 11481716.33 | AA26: 559402447.1 | AB26: 270.0541412 | AC26: 8.102716077e-05
B27: 0.011 | C27: 12346.89933 | D27: 37040.69798 | E27: 2.201347508 | F27: 12391 | G27: 5652 | H27: 67432.79865 | I27: 149.9915522 | J27: 270.0595607 | K27: 27.46335065 | L27: 82.39005196 | M27: 0.004896482666 | N27: 27.56144429 | O27: 12.57180882 | P27: 250.4268815 | Q27: 0.00632676882 | R27: -100.1682219 | S27: 14.92242451 | T27: 48.11834504 | U27: 2.442006011e-05 | V27: -550083.4307 | W27: -77820.88631 | X27: -0.7680324334 | Y27: -114644.6394 | Z27: 11483749.68 | AA27: 559413928.8 | AB27: 270.0595607 | AC27: 8.913781618e-05
B28: 0.012 | C28: 12346.79916 | D28: 37040.39747 | E28: 2.401683952 | F28: 12391 | G28: 5652 | H28: 67432.59832 | I28: 149.9907842 | J28: 270.0649812 | K28: 27.46306881 | L28: 82.38920644 | M28: 0.005342081846 | N28: 27.56138504 | O28: 12.5717818 | P28: 250.4720969 | Q28: 0.006904680385 | R28: -100.1860769 | S28: 14.92246882 | T28: 48.11778786 | U28: 2.441977734e-05 | V28: -550089.6043 | W28: -77821.75971 | X28: -0.7680410531 | Y28: -114644.5104 | Z28: 11485783.73 | AA28: 559425412.6 | AB28: 270.0649812 | AC28: 9.724991708e-05
B29: 0.013 | C29: 12346.69897 | D29: 37040.09692 | E29: 2.602056106 | F29: 12391 | G29: 5652 | H29: 67432.39794 | I29: 149.9900161 | J29: 270.0704027 | K29: 27.46278695 | L29: 82.38836084 | M29: 0.005787758544 | N29: 27.56132581 | O29: 12.57175478 | P29: 250.517328 | Q29: 0.007483052069 | R29: -100.203938 | S29: 14.92251312 | T29: 48.11723063 | U29: 2.441949454e-05 | V29: -550095.7787 | W29: -77822.6332 | X29: -0.7680496738 | Y29: -114644.3813 | Z29: 11487818.47 | AA29: 559436898.4 | AB29: 270.0704027 | AC29: 0.000105363464
B30: 0.014 | C30: 12346.59877 | D30: 37039.7963 | E30: 2.802463982 | F30: 12391 | G30: 5652 | H30: 67432.19754 | I30: 149.9892481 | J30: 270.0758251 | K30: 27.46250505 | L30: 82.38751516 | M30: 0.006233512785 | N30: 27.56126659 | O30: 12.57172777 | P30: 250.5625749 | Q30: 0.008061884255 | R30: -100.2218052 | S30: 14.92255744 | T30: 48.11667334 | U30: 2.441921172e-05 | V30: -550101.9537 | W30: -77823.50679 | X30: -0.7680582955 | Y30: -114644.2521 | Z30: 11489853.91 | AA30: 559448386.2 | AB30: 270.0758251 | AC30: 0.0001134784573
B31: 0.015 | C31: 12346.49855 | D31: 37039.49564 | E31: 3.002907592 | F31: 12391 | G31: 5652 | H31: 67431.99709 | I31: 149.98848 | J31: 270.0812485 | K31: 27.46222314 | L31: 82.38666941 | M31: 0.006679344597 | N31: 27.56120738 | O31: 12.57170076 | P31: 250.6078376 | Q31: 0.008641177329 | R31: -100.2396786 | S31: 14.92260177 | T31: 48.11611601 | U31: 2.441892887e-05 | V31: -550108.1295 | W31: -77824.38049 | X31: -0.7680669182 | Y31: -114644.123 | Z31: 11491890.04 | AA31: 559459876 | AB31: 270.0812485 | AC31: 0.0001215948976
B32: 0.016 | C32: 12346.39831 | D32: 37039.19492 | E32: 3.203386949 | F32: 12391 | G32: 5652 | H32: 67431.79661 | I32: 149.987712 | J32: 270.0866729 | K32: 27.46194119 | L32: 82.38582357 | M32: 0.007125254008 | N32: 27.56114819 | O32: 12.57167376 | P32: 250.653116 | Q32: 0.009220931674 | R32: -100.257558 | S32: 14.9226461 | T32: 48.11555862 | U32: 2.4418646e-05 | V32: -550114.306 | W32: -77825.25428 | X32: -0.7680755419 | Y32: -114643.9939 | Z32: 11493926.87 | AA32: 559471367.9 | AB32: 270.0866729 | AC32: 0.0001297127854
B33: 0.017 | C33: 12346.29805 | D33: 37038.89415 | E33: 3.403902065 | F33: 12391 | G33: 5652 | H33: 67431.5961 | I33: 149.9869439 | J33: 270.0920983 | K33: 27.46165922 | L33: 82.38497766 | M33: 0.007571241045 | N33: 27.561089 | O33: 12.57164676 | P33: 250.6984101 | Q33: 0.009801147676 | R33: -100.2754436 | S33: 14.92269044 | T33: 48.11500118 | U33: 2.44183631e-05 | V33: -550120.4832 | W33: -77826.12818 | X33: -0.7680841666 | Y33: -114643.8648 | Z33: 11495964.39 | AA33: 559482861.8 | AB33: 270.0920983 | AC33: 0.0001378321212
B34: 0.018 | C34: 12346.19777 | D34: 37038.59332 | E34: 3.604452953 | F34: 12391 | G34: 5652 | H34: 67431.39555 | I34: 149.9861758 | J34: 270.0975247 | K34: 27.46137722 | L34: 82.38413167 | M34: 0.008017305735 | N34: 27.56102983 | O34: 12.57161977 | P34: 250.74372 | Q34: 0.01038182572 | R34: -100.2933353 | S34: 14.9227348 | T34: 48.11444369 | U34: 2.441808017e-05 | V34: -550126.6611 | W34: -77827.00217 | X34: -0.7680927922 | Y34: -114643.7356 | Z34: 11498002.61 | AA34: 559494357.8 | AB34: 270.0975247 | AC34: 0.0001459529054
B35: 0.019 | C35: 12346.09748 | D35: 37038.29244 | E35: 3.805039623 | F35: 12391 | G35: 5652 | H35: 67431.19496 | I35: 149.9854077 | J35: 270.102952 | K35: 27.4610952 | L35: 82.3832856 | M35: 0.008463448105 | N35: 27.56097068 | O35: 12.57159279 | P35: 250.7890457 | Q35: 0.01096296619 | R35: -100.3112331 | S35: 14.92277915 | T35: 48.11388615 | U35: 2.441779722e-05 | V35: -550132.8398 | W35: -77827.87627 | X35: -0.7681014189 | Y35: -114643.6065 | Z35: 11500041.53 | AA35: 559505855.8 | AB35: 270.102952 | AC35: 0.0001540751386
B36: 0.02 | C36: 12345.99717 | D36: 37037.99151 | E36: 4.005662089 | F36: 12391 | G36: 5652 | H36: 67430.99434 | I36: 149.9846396 | J36: 270.1083804 | K36: 27.46081315 | L36: 82.38243945 | M36: 0.008909668184 | N36: 27.56091153 | O36: 12.57156581 | P36: 250.8343872 | Q36: 0.01154456948 | R36: -100.3291371 | S36: 14.92282352 | T36: 48.11332855 | U36: 2.441751424e-05 | V36: -550139.0191 | W36: -77828.75047 | X36: -0.7681100466 | Y36: -114643.4773 | Z36: 11502081.15 | AA36: 559517355.9 | AB36: 270.1083804 | AC36: 0.0001621988212
B37: 0.021 | C37: 12345.89684 | D37: 37037.69052 | E37: 4.206320363 | F37: 12391 | G37: 5652 | H37: 67430.79368 | I37: 149.9838715 | J37: 270.1138097 | K37: 27.46053107 | L37: 82.38159322 | M37: 0.009355965998 | N37: 27.5608524 | O37: 12.57153884 | P37: 250.8797445 | Q37: 0.01212663597 | R37: -100.3470471 | S37: 14.9228679 | T37: 48.11277091 | U37: 2.441723124e-05 | V37: -550145.1992 | W37: -77829.62477 | X37: -0.7681186752 | Y37: -114643.3481 | Z37: 11504121.46 | AA37: 559528857.9 | AB37: 270.1138097 | AC37: 0.0001703239538
B38: 0.022 | C38: 12345.79649 | D38: 37037.38948 | E38: 4.407014458 | F38: 12391 | G38: 5652 | H38: 67430.59299 | I38: 149.9831034 | J38: 270.11924 | K38: 27.46024897 | L38: 82.38074692 | M38: 0.009802341575 | N38: 27.56079328 | O38: 12.57151187 | P38: 250.9251176 | Q38: 0.01270916604 | R38: -100.3649634 | S38: 14.92291228 | T38: 48.11221321 | U38: 2.441694821e-05 | V38: -550151.3799 | W38: -77830.49917 | X38: -0.7681273049 | Y38: -114643.219 | Z38: 11506162.47 | AA38: 559540362.1 | AB38: 270.11924 | AC38: 0.0001784505368
B39: 0.023 | C39: 12345.69613 | D39: 37037.08838 | E39: 4.607744384 | F39: 12391 | G39: 5652 | H39: 67430.39226 | I39: 149.9823353 | J39: 270.1246712 | K39: 27.45996684 | L39: 82.37990053 | M39: 0.01024879494 | N39: 27.56073417 | O39: 12.57148491 | P39: 250.9705065 | Q39: 0.0132921601 | R39: -100.3828857 | S39: 14.92295667 | T39: 48.11165547 | U39: 2.441666515e-05 | V39: -550157.5614 | W39: -77831.37367 | X39: -0.7681359355 | Y39: -114643.0898 | Z39: 11508204.18 | AA39: 559551868.2 | AB39: 270.1246712 | AC39: 0.0001865785708
B40: 0.024 | C40: 12345.59574 | D40: 37036.78723 | E40: 4.808510156 | F40: 12391 | G40: 5652 | H40: 67430.19149 | I40: 149.9815671 | J40: 270.1301035 | K40: 27.45968469 | L40: 82.37905407 | M40: 0.01069532613 | N40: 27.56067508 | O40: 12.57145796 | P40: 251.0159112 | Q40: 0.01387561851 | R40: -100.4008142 | S40: 14.92300107 | T40: 48.11109767 | U40: 2.441638207e-05 | V40: -550163.7436 | W40: -77832.24827 | X40: -0.7681445672 | Y40: -114642.9606 | Z40: 11510246.59 | AA40: 559563376.4 | AB40: 270.1301035 | AC40: 0.0001947080562
B41: 0.025 | C41: 12345.49534 | D41: 37036.48603 | E41: 5.009311784 | F41: 12391 | G41: 5652 | H41: 67429.99069 | I41: 149.980799 | J41: 270.1355367 | K41: 27.45940251 | L41: 82.37820752 | M41: 0.01114193515 | N41: 27.560616 | O41: 12.57143101 | P41: 251.0613317 | Q41: 0.01445954167 | R41: -100.4187489 | S41: 14.92304548 | T41: 48.11053982 | U41: 2.441609896e-05 | V41: -550169.9265 | W41: -77833.12297 | X41: -0.7681531998 | Y41: -114642.8314 | Z41: 11512289.69 | AA41: 559574886.7 | AB41: 270.1355367 | AC41: 0.0002028389935
B42: 0.026 | C42: 12345.39493 | D42: 37036.18478 | E42: 5.210149282 | F42: 12391 | G42: 5652 | H42: 67429.78985 | I42: 149.9800308 | J42: 270.1409709 | K42: 27.4591203 | L42: 82.3773609 | M42: 0.01158862206 | N42: 27.56055693 | O42: 12.57140406 | P42: 251.1067681 | Q42: 0.01504392998 | R42: -100.4366897 | S42: 14.92308989 | T42: 48.10998191 | U42: 2.441581582e-05 | V42: -550176.1101 | W42: -77833.99778 | X42: -0.7681618335 | Y42: -114642.7022 | Z42: 11514333.5 | AA42: 559586399 | AB42: 270.1409709 | AC42: 0.0002109713833
B43: 0.027 | C43: 12345.29449 | D43: 37035.88347 | E43: 5.411022661 | F43: 12391 | G43: 5652 | H43: 67429.58898 | I43: 149.9792627 | J43: 270.1464062 | K43: 27.45883807 | L43: 82.3765142 | M43: 0.01203538686 | N43: 27.56049787 | O43: 12.57137713 | P43: 251.1522203 | Q43: 0.01562878381 | R43: -100.4546366 | S43: 14.92313432 | T43: 48.10942396 | U43: 2.441553266e-05 | V43: -550182.2945 | W43: -77834.87268 | X43: -0.7681704681 | Y43: -114642.573 | Z43: 11516378.01 | AA43: 559597913.3 | AB43: 270.1464062 | AC43: 0.000219105226
B44: 0.028 | C44: 12345.19403 | D44: 37035.5821 | E44: 5.611931935 | F44: 12391 | G44: 5652 | H44: 67429.38807 | I44: 149.9784945 | J44: 270.1518423 | K44: 27.45855581 | L44: 82.37566742 | M44: 0.01248222959 | N44: 27.56043883 | O44: 12.5713502 | P44: 251.1976883 | Q44: 0.01621410356 | R44: -100.4725897 | S44: 14.92317875 | T44: 48.10886596 | U44: 2.441524947e-05 | V44: -550188.4795 | W44: -77835.74769 | X44: -0.7681791038 | Y44: -114642.4437 | Z44: 11518423.21 | AA44: 559609429.7 | AB44: 270.1518423 | AC44: 0.0002272405221
B45: 0.029 | C45: 12345.09356 | D45: 37035.28068 | E45: 5.812877114 | F45: 12391 | G45: 5652 | H45: 67429.18712 | I45: 149.9777263 | J45: 270.1572795 | K45: 27.45827352 | L45: 82.37482057 | M45: 0.01292915027 | N45: 27.5603798 | O45: 12.57132327 | P45: 251.2431722 | Q45: 0.01679988961 | R45: -100.4905489 | S45: 14.92322319 | T45: 48.1083079 | U45: 2.441496626e-05 | V45: -550194.6653 | W45: -77836.6228 | X45: -0.7681877404 | Y45: -114642.3145 | Z45: 11520469.12 | AA45: 559620948.1 | AB45: 270.1572795 | AC45: 0.0002353772722
B46: 0.03 | C46: 12344.99307 | D46: 37034.97921 | E46: 6.013858212 | F46: 12391 | G46: 5652 | H46: 67428.98614 | I46: 149.9769581 | J46: 270.1627177 | K46: 27.45799121 | L46: 82.37397363 | M46: 0.01337614894 | N46: 27.56032078 | O46: 12.57129635 | P46: 251.288672 | Q46: 0.01738614236 | R46: -100.5085144 | S46: 14.92326764 | T46: 48.10774979 | U46: 2.441468302e-05 | V46: -550200.8518 | W46: -77837.498 | X46: -0.768196378 | Y46: -114642.1853 | Z46: 11522515.72 | AA46: 559632468.6 | AB46: 270.1627177 | AC46: 0.0002435154767
B47: 0.031 | C47: 12344.89256 | D47: 37034.67769 | E47: 6.214875241 | F47: 12391 | G47: 5652 | H47: 67428.78512 | I47: 149.9761899 | J47: 270.1681568 | K47: 27.45770887 | L47: 82.37312662 | M47: 0.01382322561 | N47: 27.56026178 | O47: 12.57126943 | P47: 251.3341877 | Q47: 0.0179728622 | R47: -100.5264859 | S47: 14.9233121 | T47: 48.10719163 | U47: 2.441439975e-05 | V47: -550207.039 | W47: -77838.37331 | X47: -0.7682050167 | Y47: -114642.056 | Z47: 11524563.03 | AA47: 559643991.1 | AB47: 270.1681568 | AC47: 0.0002516551361
B48: 0.032 | C48: 12344.79204 | D48: 37034.37611 | E48: 6.415928212 | F48: 12391 | G48: 5652 | H48: 67428.58407 | I48: 149.9754217 | J48: 270.173597 | K48: 27.45742651 | L48: 82.37227952 | M48: 0.01427038032 | N48: 27.56020278 | O48: 12.57124253 | P48: 251.3797192 | Q48: 0.01856004951 | R48: -100.5444637 | S48: 14.92335656 | T48: 48.10663342 | U48: 2.441411646e-05 | V48: -550213.2269 | W48: -77839.24873 | X48: -0.7682136563 | Y48: -114641.9267 | Z48: 11526611.04 | AA48: 559655515.6 | AB48: 270.173597 | AC48: 0.0002597962509
B49: 0.033 | C49: 12344.69149 | D49: 37034.07447 | E49: 6.61701714 | F49: 12391 | G49: 5652 | H49: 67428.38298 | I49: 149.9746535 | J49: 270.1790381 | K49: 27.45714412 | L49: 82.37143235 | M49: 0.0147176131 | N49: 27.56014381 | O49: 12.57121562 | P49: 251.4252667 | Q49: 0.0191477047 | R49: -100.5624476 | S49: 14.92340104 | T49: 48.10607516 | U49: 2.441383314e-05 | V49: -550219.4155 | W49: -77840.12424 | X49: -0.7682222969 | Y49: -114641.7975 | Z49: 11528659.75 | AA49: 559667042.2 | AB49: 270.1790381 | AC49: 0.0002679388217
B50: 0.034 | C50: 12344.59093 | D50: 37033.77279 | E50: 6.818142035 | F50: 12391 | G50: 5652 | H50: 67428.18186 | I50: 149.9738853 | J50: 270.1844802 | K50: 27.4568617 | L50: 82.3705851 | M50: 0.01516492397 | N50: 27.56008484 | O50: 12.57118873 | P50: 251.47083 | Q50: 0.01973582814 | R50: -100.5804377 | S50: 14.92344552 | T50: 48.10551684 | U50: 2.44135498e-05 | V50: -550225.6049 | W50: -77840.99985 | X50: -0.7682309386 | Y50: -114641.6682 | Z50: 11530709.16 | AA50: 559678570.9 | AB50: 270.1844802 | AC50: 0.0002760828488
B51: 0.035 | C51: 12344.49035 | D51: 37033.47105 | E51: 7.01930291 | F51: 12391 | G51: 5652 | H51: 67427.9807 | I51: 149.9731171 | J51: 270.1899233 | K51: 27.45657925 | L51: 82.36973776 | M51: 0.01561231296 | N51: 27.56002589 | O51: 12.57116184 | P51: 251.5164092 | Q51: 0.02032442023 | R51: -100.5984339 | S51: 14.92349001 | T51: 48.10495848 | U51: 2.441326643e-05 | V51: -550231.7949 | W51: -77841.87557 | X51: -0.7682395812 | Y51: -114641.5389 | Z51: 11532759.28 | AA51: 559690101.6 | AB51: 270.1899233 | AC51: 0.0002842283329
B52: 0.036 | C52: 12344.38975 | D52: 37033.16925 | E52: 7.220499778 | F52: 12391 | G52: 5652 | H52: 67427.7795 | I52: 149.9723488 | J52: 270.1953674 | K52: 27.45629678 | L52: 82.36889035 | M52: 0.0160597801 | N52: 27.55996694 | O52: 12.57113495 | P52: 251.5620044 | Q52: 0.02091348137 | R52: -100.6164364 | S52: 14.9235345 | T52: 48.10440006 | U52: 2.441298303e-05 | V52: -550237.9857 | W52: -77842.75138 | X52: -0.7682482248 | Y52: -114641.4096 | Z52: 11534810.09 | AA52: 559701634.4 | AB52: 270.1953674 | AC52: 0.0002923752745
B53: 0.037 | C53: 12344.28913 | D53: 37032.8674 | E53: 7.421732651 | F53: 12391 | G53: 5652 | H53: 67427.57827 | I53: 149.9715806 | J53: 270.2008124 | K53: 27.45601429 | L53: 82.36804286 | M53: 0.01650732541 | N53: 27.55990802 | O53: 12.57110807 | P53: 251.6076155 | Q53: 0.02150301194 | R53: -100.634445 | S53: 14.92357901 | T53: 48.10384159 | U53: 2.441269961e-05 | V53: -550244.1772 | W53: -77843.6273 | X53: -0.7682568695 | Y53: -114641.2803 | Z53: 11536861.62 | AA53: 559713169.2 | AB53: 270.2008124 | AC53: 0.0003005236739
B54: 0.038 | C54: 12344.1885 | D54: 37032.5655 | E54: 7.623001541 | F54: 12391 | G54: 5652 | H54: 67427.377 | I54: 149.9708123 | J54: 270.2062585 | K54: 27.45573177 | L54: 82.3671953 | M54: 0.01695494893 | N54: 27.5598491 | O54: 12.5710812 | P54: 251.6532425 | Q54: 0.02209301235 | R54: -100.6524598 | S54: 14.92362353 | T54: 48.10328307 | U54: 2.441241616e-05 | V54: -550250.3694 | W54: -77844.50332 | X54: -0.7682655151 | Y54: -114641.151 | Z54: 11538913.84 | AA54: 559724706 | AB54: 270.2062585 | AC54: 0.0003086735318
B55: 0.039 | C55: 12344.08785 | D55: 37032.26354 | E55: 7.82430646 | F55: 12391 | G55: 5652 | H55: 67427.17569 | I55: 149.970044 | J55: 270.2117055 | K55: 27.45544922 | L55: 82.36634765 | M55: 0.01740265067 | N55: 27.5597902 | O55: 12.57105433 | P55: 251.6988854 | Q55: 0.02268348297 | R55: -100.6704808 | S55: 14.92366805 | T55: 48.1027245 | U55: 2.441213268e-05 | V55: -550256.5624 | W55: -77845.37944 | X55: -0.7682741617 | Y55: -114641.0217 | Z55: 11540966.77 | AA55: 559736245 | AB55: 270.2117055 | AC55: 0.0003168248486
B56: 0.04 | C56: 12343.98718 | D56: 37031.96153 | E56: 8.025647422 | F56: 12391 | G56: 5652 | H56: 67426.97435 | I56: 149.9692758 | J56: 270.2171536 | K56: 27.45516664 | L56: 82.36549992 | M56: 0.01785043068 | N56: 27.55973131 | O56: 12.57102747 | P56: 251.7445443 | Q56: 0.02327442421 | R56: -100.688508 | S56: 14.92371258 | T56: 48.10216587 | U56: 2.441184918e-05 | V56: -550262.756 | W56: -77846.25566 | X56: -0.7682828094 | Y56: -114640.8923 | Z56: 11543020.4 | AA56: 559747785.9 | AB56: 270.2171536 | AC56: 0.0003249776248
B57: 0.041 | C57: 12343.88649 | D57: 37031.65946 | E57: 8.227024438 | F57: 12391 | G57: 5652 | H57: 67426.77298 | I57: 149.9685075 | J57: 270.2226026 | K57: 27.45488404 | L57: 82.36465212 | M57: 0.01829828897 | N57: 27.55967243 | O57: 12.57100061 | P57: 251.7902192 | Q57: 0.02386583646 | R57: -100.7065413 | S57: 14.92375712 | T57: 48.10160719 | U57: 2.441156565e-05 | V57: -550268.9504 | W57: -77847.13198 | X57: -0.768291458 | Y57: -114640.763 | Z57: 11545074.74 | AA57: 559759329 | AB57: 270.2226026 | AC57: 0.0003331318609
B58: 0.042 | C58: 12343.78578 | D58: 37031.35734 | E58: 8.42843752 | F58: 12391 | G58: 5652 | H58: 67426.57156 | I58: 149.9677392 | J58: 270.2280526 | K58: 27.45460141 | L58: 82.36380423 | M58: 0.01874622557 | N58: 27.55961357 | O58: 12.57097376 | P58: 251.83591 | Q58: 0.02445772011 | R58: -100.7245809 | S58: 14.92380167 | T58: 48.10104847 | U58: 2.44112821e-05 | V58: -550275.1455 | W58: -77848.00841 | X58: -0.7683001077 | Y58: -114640.6337 | Z58: 11547129.78 | AA58: 559770874 | AB58: 270.2280526 | AC58: 0.0003412875575
B59: 0.043 | C59: 12343.68506 | D59: 37031.05517 | E59: 8.629886682 | F59: 12391 | G59: 5652 | H59: 67426.37011 | I59: 149.9669709 | J59: 270.2335036 | K59: 27.45431876 | L59: 82.36295627 | M59: 0.01919424051 | N59: 27.55955471 | O59: 12.57094692 | P59: 251.8816168 | Q59: 0.02505007556 | R59: -100.7426267 | S59: 14.92384622 | T59: 48.10048969 | U59: 2.441099852e-05 | V59: -550281.3413 | W59: -77848.88494 | X59: -0.7683087583 | Y59: -114640.5043 | Z59: 11549185.53 | AA59: 559782421.2 | AB59: 270.2335036 | AC59: 0.000349444715
B60: 0.044 | C60: 12343.58431 | D60: 37030.75294 | E60: 8.831371936 | F60: 12391 | G60: 5652 | H60: 67426.16863 | I60: 149.9662026 | J60: 270.2389556 | K60: 27.45403607 | L60: 82.36210822 | M60: 0.01964233383 | N60: 27.55949588 | O60: 12.57092008 | P60: 251.9273395 | Q60: 0.02564290321 | R60: -100.7606786 | S60: 14.92389079 | T60: 48.09993086 | U60: 2.441071491e-05 | V60: -550287.5378 | W60: -77849.76156 | X60: -0.76831741 | Y60: -114640.3749 | Z60: 11551241.98 | AA60: 559793970.3 | AB60: 270.2389556 | AC60: 0.000357603334
B61: 0.045 | C61: 12343.48355 | D61: 37030.45066 | E61: 9.032893293 | F61: 12391 | G61: 5652 | H61: 67425.96711 | I61: 149.9654343 | J61: 270.2444086 | K61: 27.45375337 | L61: 82.3612601 | M61: 0.02009050553 | N61: 27.55943705 | O61: 12.57089325 | P61: 251.9730783 | Q61: 0.02623620345 | R61: -100.7787368 | S61: 14.92393536 | T61: 48.09937197 | U61: 2.441043128e-05 | V61: -550293.735 | W61: -77850.63829 | X61: -0.7683260626 | Y61: -114640.2456 | Z61: 11553299.14 | AA61: 559805521.6 | AB61: 270.2444086 | AC61: 0.0003657634148
B62: 0.046 | C62: 12343.38277 | D62: 37030.14832 | E62: 9.234450766 | F62: 12391 | G62: 5652 | H62: 67425.76555 | I62: 149.9646659 | J62: 270.2498625 | K62: 27.45347063 | L62: 82.3604119 | M62: 0.02053875567 | N62: 27.55937824 | O62: 12.57086642 | P62: 252.018833 | Q62: 0.02682997667 | R62: -100.7968012 | S62: 14.92397994 | T62: 48.09881304 | U62: 2.441014762e-05 | V62: -550299.933 | W62: -77851.51512 | X62: -0.7683347163 | Y62: -114640.1162 | Z62: 11555357 | AA62: 559817074.9 | AB62: 270.2498625 | AC62: 0.0003739249581
B63: 0.047 | C63: 12343.28198 | D63: 37029.84593 | E63: 9.436044369 | F63: 12391 | G63: 5652 | H63: 67425.56396 | I63: 149.9638976 | J63: 270.2553175 | K63: 27.45318787 | L63: 82.35956362 | M63: 0.02098708425 | N63: 27.55931944 | O63: 12.5708396 | P63: 252.0646038 | Q63: 0.02742422327 | R63: -100.8148718 | S63: 14.92402453 | T63: 48.09825405 | U63: 2.440986393e-05 | V63: -550306.1316 | W63: -77852.39206 | X63: -0.7683433709 | Y63: -114639.9868 | Z63: 11557415.57 | AA63: 559828630.2 | AB63: 270.2553175 | AC63: 0.0003820879644
B64: 0.048 | C64: 12343.18116 | D64: 37029.54349 | E64: 9.637674113 | F64: 12391 | G64: 5652 | H64: 67425.36233 | I64: 149.9631293 | J64: 270.2607734 | K64: 27.45290509 | L64: 82.35871526 | M64: 0.02143549132 | N64: 27.55926065 | O64: 12.57081278 | P64: 252.1103905 | Q64: 0.02801894365 | R64: -100.8329486 | S64: 14.92406912 | T64: 48.09769501 | U64: 2.440958022e-05 | V64: -550312.331 | W64: -77853.26909 | X64: -0.7683520266 | Y64: -114639.8574 | Z64: 11559474.85 | AA64: 559840187.7 | AB64: 270.2607734 | AC64: 0.0003902524341
B65: 0.049 | C65: 12343.08033 | D65: 37029.24099 | E65: 9.83934001 | F65: 12391 | G65: 5652 | H65: 67425.16066 | I65: 149.9623609 | J65: 270.2662304 | K65: 27.45262227 | L65: 82.35786681 | M65: 0.02188397689 | N65: 27.55920187 | O65: 12.57078597 | P65: 252.1561933 | Q65: 0.0286141382 | R65: -100.8510317 | S65: 14.92411373 | T65: 48.09713592 | U65: 2.440929648e-05 | V65: -550318.5312 | W65: -77854.14623 | X65: -0.7683606832 | Y65: -114639.728 | Z65: 11561534.84 | AA65: 559851747.1 | AB65: 270.2662304 | AC65: 0.0003984183677
B66: 0.05 | C66: 12342.97948 | D66: 37028.93844 | E66: 10.04104207 | F66: 12391 | G66: 5652 | H66: 67424.95896 | I66: 149.9615926 | J66: 270.2716883 | K66: 27.45233943 | L66: 82.3570183 | M66: 0.022332541 | N66: 27.55914311 | O66: 12.57075917 | P66: 252.2020122 | Q66: 0.02920980733 | R66: -100.8691209 | S66: 14.92415834 | T66: 48.09657678 | U66: 2.440901271e-05 | V66: -550324.732 | W66: -77855.02347 | X66: -0.7683693409 | Y66: -114639.5986 | Z66: 11563595.53 | AA66: 559863308.7 | AB66: 270.2716883 | AC66: 0.0004065857658
B67: 0.051 | C67: 12342.87861 | D67: 37028.63583 | E67: 10.24278032 | F67: 12391 | G67: 5652 | H67: 67424.75722 | I67: 149.9608242 | J67: 270.2771472 | K67: 27.45205657 | L67: 82.3561697 | M67: 0.02278118367 | N67: 27.55908436 | O67: 12.57073237 | P67: 252.247847 | Q67: 0.02980595143 | R67: -100.8872164 | S67: 14.92420296 | T67: 48.09601758 | U67: 2.440872892e-05 | V67: -550330.9335 | W67: -77855.90081 | X67: -0.7683779996 | Y67: -114639.4692 | Z67: 11565656.94 | AA67: 559874872.3 | AB67: 270.2771472 | AC67: 0.0004147546289
B68: 0.052 | C68: 12342.77772 | D68: 37028.33317 | E68: 10.44455475 | F68: 12391 | G68: 5652 | H68: 67424.55545 | I68: 149.9600558 | J68: 270.2826072 | K68: 27.45177367 | L68: 82.35532102 | M68: 0.02322990493 | N68: 27.55902563 | O68: 12.57070558 | P68: 252.2936979 | Q68: 0.0304025709 | R68: -100.9053181 | S68: 14.92424759 | T68: 48.09545834 | U68: 2.440844511e-05 | V68: -550337.1358 | W68: -77856.77825 | X68: -0.7683866593 | Y68: -114639.3397 | Z68: 11567719.05 | AA68: 559886437.9 | AB68: 270.2826072 | AC68: 0.0004229249574
B69: 0.053 | C69: 12342.67682 | D69: 37028.03045 | E69: 10.64636538 | F69: 12391 | G69: 5652 | H69: 67424.35363 | I69: 149.9592874 | J69: 270.2880681 | K69: 27.45149075 | L69: 82.35447226 | M69: 0.02367870481 | N69: 27.5589669 | O69: 12.57067879 | P69: 252.3395649 | Q69: 0.03099966613 | R69: -100.9234261 | S69: 14.92429223 | T69: 48.09489904 | U69: 2.440816126e-05 | V69: -550343.3388 | W69: -77857.65579 | X69: -0.76839532 | Y69: -114639.2103 | Z69: 11569781.87 | AA69: 559898005.6 | AB69: 270.2880681 | AC69: 0.0004310967519
B70: 0.054 | C70: 12342.57589 | D70: 37027.72768 | E70: 10.84821224 | F70: 12391 | G70: 5652 | H70: 67424.15179 | I70: 149.958519 | J70: 270.29353 | K70: 27.45120781 | L70: 82.35362342 | M70: 0.02412758333 | N70: 27.55890819 | O70: 12.57065201 | P70: 252.3854479 | Q70: 0.03159723753 | R70: -100.9415403 | S70: 14.92433688 | T70: 48.09433969 | U70: 2.440787739e-05 | V70: -550349.5425 | W70: -77858.53344 | X70: -0.7684039816 | Y70: -114639.0808 | Z70: 11571845.39 | AA70: 559909575.4 | AB70: 270.29353 | AC70: 0.0004392700128
B71: 0.055 | C71: 12342.47495 | D71: 37027.42486 | E71: 11.05009532 | F71: 12391 | G71: 5652 | H71: 67423.9499 | I71: 149.9577506 | J71: 270.2989929 | K71: 27.45092483 | L71: 82.3527745 | M71: 0.02457654053 | N71: 27.5588495 | O71: 12.57062524 | P71: 252.431347 | Q71: 0.0321952855 | R71: -100.9596607 | S71: 14.92438153 | T71: 48.09378028 | U71: 2.440759349e-05 | V71: -550355.747 | W71: -77859.41119 | X71: -0.7684126443 | Y71: -114638.9514 | Z71: 11573909.63 | AA71: 559921147.3 | AB71: 270.2989929 | AC71: 0.0004474447407
B72: 0.056 | C72: 12342.37399 | D72: 37027.12198 | E72: 11.25201464 | F72: 12391 | G72: 5652 | H72: 67423.74799 | I72: 149.9569822 | J72: 270.3044568 | K72: 27.45064184 | L72: 82.35192551 | M72: 0.02502557644 | N72: 27.55879081 | O72: 12.57059847 | P72: 252.4772622 | Q72: 0.03279381043 | R72: -100.9777873 | S72: 14.9244262 | T72: 48.09322083 | U72: 2.440730957e-05 | V72: -550361.9521 | W72: -77860.28904 | X72: -0.7684213081 | Y72: -114638.8219 | Z72: 11575974.58 | AA72: 559932721.2 | AB72: 270.3044568 | AC72: 0.0004556209361
B73: 0.057 | C73: 12342.27301 | D73: 37026.81904 | E73: 11.45397021 | F73: 12391 | G73: 5652 | H73: 67423.54603 | I73: 149.9562138 | J73: 270.3099217 | K73: 27.45035881 | L73: 82.35107643 | M73: 0.02547469107 | N73: 27.55873214 | O73: 12.57057171 | P73: 252.5231934 | Q73: 0.03339281272 | R73: -100.9959202 | S73: 14.92447087 | T73: 48.09266132 | U73: 2.440702562e-05 | V73: -550368.158 | W73: -77861.16699 | X73: -0.7684299728 | Y73: -114638.6924 | Z73: 11578040.24 | AA73: 559944297.1 | AB73: 270.3099217 | AC73: 0.0004637985995
B74: 0.058 | C74: 12342.17202 | D74: 37026.51606 | E74: 11.65596205 | F74: 12391 | G74: 5652 | H74: 67423.34404 | I74: 149.9554454 | J74: 270.3153876 | K74: 27.45007576 | L74: 82.35022728 | M74: 0.02592388446 | N74: 27.55867348 | O74: 12.57054495 | P74: 252.5691408 | Q74: 0.03399229278 | R74: -101.0140594 | S74: 14.92451555 | T74: 48.09210176 | U74: 2.440674165e-05 | V74: -550374.3646 | W74: -77862.04504 | X74: -0.7684386385 | Y74: -114638.5629 | Z74: 11580106.61 | AA74: 559955875.2 | AB74: 270.3153876 | AC74: 0.0004719777313
B75: 0.059 | C75: 12342.071 | D75: 37026.21301 | E75: 11.85799017 | F75: 12391 | G75: 5652 | H75: 67423.14201 | I75: 149.9546769 | J75: 270.3208544 | K75: 27.44979268 | L75: 82.34937804 | M75: 0.02637315664 | N75: 27.55861484 | O75: 12.5705182 | P75: 252.6151042 | Q75: 0.03459225101 | R75: -101.0322048 | S75: 14.92456024 | T75: 48.09154215 | U75: 2.440645764e-05 | V75: -550380.5719 | W75: -77862.9232 | X75: -0.7684473052 | Y75: -114638.4335 | Z75: 11582173.69 | AA75: 559967455.3 | AB75: 270.3208544 | AC75: 0.0004801583322
B76: 0.06 | C76: 12341.96997 | D76: 37025.90992 | E76: 12.06005458 | F76: 12391 | G76: 5652 | H76: 67422.93995 | I76: 149.9539085 | J76: 270.3263223 | K76: 27.44950957 | L76: 82.34852872 | M76: 0.02682250763 | N76: 27.5585562 | O76: 12.57049146 | P76: 252.6610838 | Q76: 0.0351926878 | R76: -101.0503564 | S76: 14.92460493 | T76: 48.09098249 | U76: 2.440617361e-05 | V76: -550386.7799 | W76: -77863.80146 | X76: -0.7684559729 | Y76: -114638.304 | Z76: 11584241.48 | AA76: 559979037.5 | AB76: 270.3263223 | AC76: 0.0004883404026
B77: 0.061 | C77: 12341.86892 | D77: 37025.60677 | E77: 12.26215529 | F77: 12391 | G77: 5652 | H77: 67422.73784 | I77: 149.95314 | J77: 270.3317912 | K77: 27.44922644 | L77: 82.34767933 | M77: 0.02727193746 | N77: 27.55849758 | O77: 12.57046472 | P77: 252.7070795 | Q77: 0.03579360357 | R77: -101.0685143 | S77: 14.92464964 | T77: 48.09042278 | U77: 2.440588956e-05 | V77: -550392.9887 | W77: -77864.67982 | X77: -0.7684646417 | Y77: -114638.1744 | Z77: 11586309.98 | AA77: 559990621.7 | AB77: 270.3317912 | AC77: 0.0004965239429
B78: 0.062 | C78: 12341.76785 | D78: 37025.30356 | E78: 12.46429232 | F78: 12391 | G78: 5652 | H78: 67422.53571 | I78: 149.9523715 | J78: 270.337261 | K78: 27.44894328 | L78: 82.34682985 | M78: 0.02772144616 | N78: 27.55843897 | O78: 12.57043799 | P78: 252.7530913 | Q78: 0.0363949987 | R78: -101.0866785 | S78: 14.92469435 | T78: 48.08986301 | U78: 2.440560548e-05 | V78: -550399.1982 | W78: -77865.55828 | X78: -0.7684733114 | Y78: -114638.0449 | Z78: 11588379.19 | AA78: 560002208 | AB78: 270.337261 | AC78: 0.0005047089538
B79: 0.063 | C79: 12341.66677 | D79: 37025.0003 | E79: 12.66646568 | F79: 12391 | G79: 5652 | H79: 67422.33353 | I79: 149.9516031 | J79: 270.3427319 | K79: 27.4486601 | L79: 82.3459803 | M79: 0.02817103376 | N79: 27.55838038 | O79: 12.57041126 | P79: 252.7991192 | Q79: 0.03699687361 | R79: -101.1048489 | S79: 14.92473907 | T79: 48.08930319 | U79: 2.440532137e-05 | V79: -550405.4084 | W79: -77866.43685 | X79: -0.7684819822 | Y79: -114637.9154 | Z79: 11590449.12 | AA79: 560013796.4 | AB79: 270.3427319 | AC79: 0.0005128954357
B80: 0.064 | C80: 12341.56566 | D80: 37024.69699 | E80: 12.86867538 | F80: 12391 | G80: 5652 | H80: 67422.13132 | I80: 149.9508346 | J80: 270.3482038 | K80: 27.44837689 | L80: 82.34513067 | M80: 0.02862070028 | N80: 27.5583218 | O80: 12.57038454 | P80: 252.8451633 | Q80: 0.03759922869 | R80: -101.1230256 | S80: 14.9247838 | T80: 48.08874332 | U80: 2.440503723e-05 | V80: -550411.6193 | W80: -77867.31551 | X80: -0.768490654 | Y80: -114637.7859 | Z80: =(P80-Q80)*(-Y80)*eps -> 11592519.76 | AA80: 560025386.8 | AB80: 270.3482038 | AC80: =(FeedN2-C80)/FeedN2 -> 0.0005210833891
B81: 0.065 | C81: 12341.46454 | D81: 37024.39362 | E81: 13.07092143 | F81: 12391 | G81: 5652 | H81: 67421.92908 | I81: 149.9500661 | J81: 270.3536766 | K81: 27.44809365 | L81: 82.34428095 | M81: 0.02907044576 | N81: 27.55826323 | O81: 12.57035782 | P81: 252.8912236 | Q81: 0.03820206436 | R81: -101.1412086 | S81: 14.92482854 | T81: 48.0881834 | U81: 2.440475307e-05 | V81: -550417.831 | W81: -77868.19428 | X81: -0.7684993268 | Y81: -114637.6563 | Z81: 11594591.11 | AA81: =AA80+Z80*(B81-B80) -> 560036979.4 | AB81: =FindT(AA81,AB80,C81,D81,E81,F81,G81) -> 270.3536766 | AC81: 0.0005292728146
B82: 0.066 | C82: =C81+R81*(B82-B81) -> 12341.3634 | D82: =FeedH2-3*(FeedN2-C82) -> 37024.09019 | E82: =2*(FeedN2-C82) -> 13.27320385 | F82: =F81 -> 12391 | G82: =G81 -> 5652 | H82: =SUM(C82:G82) -> 67421.7268 | I82: =I81+X81*(B82-B81) -> 149.9492976 | J82: =AB82 -> 270.3591505 | K82: =C82/$H82*$I82 -> 27.44781039 | L82: =D82/$H82*$I82 -> 82.34343116 | M82: =E82/$H82*$I82 -> 0.02952027022 | N82: =F82/$H82*$I82 -> 27.55820467 | O82: =G82/$H82*$I82 -> 12.57033111 | P82: =k0f*EXP(-Ef/Rgas/(J82+273.15))*K82 ^ 0.5 * L82 ^ 1.5 -> 252.9373 | Q82: =k0r*EXP(-Er/Rgas/(J82+273.15))*M82 -> 0.038805381 | R82: =-eps*(P82-Q82) -> -101.1593978 | S82: =C82/H82*MW_N2+D82/H82*MW_H2+E82/H82*MW_NH3+F82/H82*MW_Ar+G82/H82*MW_CH4 -> 14.92487329 | T82: =S82/SpecVol(J82,I82,C82:G82,w,Tc,Pc,K) -> 48.08762342 | U82: =$P$12*T82 -> 2.440446889e-05 | V82: =-(150*(1-eps)/Dp/G0*U82+7/4)*(1-eps)/eps^3/Dp/T82*G0^2 -> -550424.0434 | W82: =V82/Ar -> -77869.07316 | X82: =W82/101325 -> -0.7685080005 | Y82: =HtRxnP(J82,I82) -> -114637.5268 | Z82: 11596663.18 | AA82: 560048574 | AB82: 270.3591505 | AC82: 0.0005374637126
B83: 0.067 | C83: 12341.26224 | D83: 37023.78672 | E83: 13.47552264 | F83: 12391 | G83: 5652 | H83: 67421.52448 | I83: 149.9485291 | J83: 270.3646253 | K83: 27.44752709 | L83: 82.34258128 | M83: 0.02997017369 | N83: 27.55814613 | O83: 12.57030441 | P83: 252.9833926 | Q83: 0.03940917904 | R83: -101.1775934 | S83: 14.92491804 | T83: 48.08706339 | U83: 2.440418467e-05 | V83: -550430.2565 | W83: -77869.95213 | X83: -0.7685166753 | Y83: -114637.3972 | Z83: 11598735.96 | AA83: 560060170.6 | AB83: 270.3646253 | AC83: 0.0005456560837
B84: 0.068 | C84: 12341.16106 | D84: 37023.48318 | E84: 13.67787783 | F84: 12391 | G84: 5652 | H84: 67421.32212 | I84: 149.9477606 | J84: 270.3701012 | K84: 27.44724378 | L84: 82.34173133 | M84: 0.0304201562 | N84: 27.5580876 | O84: 12.57027771 | P84: 253.0295013 | Q84: 0.04001345886 | R84: -101.1957951 | S84: 14.9249628 | T84: 48.08650331 | U84: 2.440390043e-05 | V84: -550436.4703 | W84: -77870.83121 | X84: -0.7685253512 | Y84: -114637.2676 | Z84: 11600809.45 | AA84: 560071769.4 | AB84: 270.3701012 | AC84: 0.0005538499283
B85: 0.069 | C85: 12341.05987 | D85: 37023.1796 | E85: 13.88026942 | F85: 12391 | G85: 5652 | H85: 67421.11973 | I85: 149.9469921 | J85: 270.375578 | K85: 27.44696043 | L85: 82.3408813 | M85: 0.03087021777 | N85: 27.55802909 | O85: 12.57025102 | P85: 253.0756263 | Q85: 0.04061822088 | R85: -101.2140032 | S85: 14.92500757 | T85: 48.08594318 | U85: 2.440361616e-05 | V85: -550442.6848 | W85: -77871.71038 | X85: -0.768534028 | Y85: -114637.1381 | Z85: 11602883.66 | AA85: 560083370.2 | AB85: 270.375578 | AC85: 0.000562045247
B86: 0.07 | C86: 12340.95865 | D86: 37022.87595 | E86: 14.08269743 | F86: 12391 | G86: 5652 | H86: 67420.9173 | I86: 149.9462235 | J86: 270.3810559 | K86: 27.44667706 | L86: 82.34003118 | M86: 0.03132035844 | N86: 27.55797058 | O86: 12.57022433 | P86: 253.1217674 | Q86: 0.0412234655 | R86: -101.2322176 | S86: 14.92505235 | T86: 48.085383 | U86: 2.440333187e-05 | V86: -550448.9001 | W86: -77872.58967 | X86: -0.7685427058 | Y86: -114637.0085 | Z86: 11604958.58 | AA86: 560094973 | AB86: 270.3810559 | AC86: 0.0005702420402
B87: 0.071 | C87: 12340.85742 | D87: 37022.57226 | E87: 14.28516186 | F87: 12391 | G87: 5652 | H87: 67420.71484 | I87: 149.945455 | J87: 270.3865347 | K87: 27.44639366 | L87: 82.33918099 | M87: 0.03177057822 | N87: 27.55791209 | O87: 12.57019765 | P87: 253.1679248 | Q87: 0.04182919313 | R87: -101.2504382 | S87: 14.92509714 | T87: 48.08482276 | U87: 2.440304755e-05 | V87: -550455.1161 | W87: -77873.46905 | X87: -0.7685513846 | Y87: -114636.8789 | Z87: 11607034.22 | AA87: 560106578 | AB87: 270.3865347 | AC87: 0.0005784403086
B88: 0.072 | C88: 12340.75617 | D88: 37022.26851 | E88: 14.48766274 | F88: 12391 | G88: 5652 | H88: 67420.51234 | I88: 149.9446864 | J88: 270.3920146 | K88: 27.44611024 | L88: 82.33833072 | M88: 0.03222087716 | N88: 27.55785361 | O88: 12.57017098 | P88: 253.2140983 | Q88: 0.04243540417 | R88: -101.2686652 | S88: 14.92514194 | T88: 48.08426247 | U88: 2.440276321e-05 | V88: -550461.3328 | W88: -77874.34854 | X88: -0.7685600645 | Y88: -114636.7493 | Z88: 11609110.58 | AA88: 560118185 | AB88: 270.3920146 | AC88: 0.0005866400525
B89: 0.073 | C89: 12340.6549 | D89: 37021.9647 | E89: 14.69020007 | F89: 12391 | G89: 5652 | H89: 67420.3098 | I89: 149.9439179 | J89: 270.3974954 | K89: 27.44582679 | L89: 82.33748036 | M89: 0.03267125528 | N89: 27.55779515 | O89: 12.57014431 | P89: 253.2602881 | Q89: 0.04304209903 | R89: -101.2868984 | S89: 14.92518674 | T89: 48.08370213 | U89: 2.440247883e-05 | V89: -550467.5503 | W89: -77875.22812 | X89: -0.7685687454 | Y89: -114636.6197 | Z89: 11611187.65 | AA89: 560129794.2 | AB89: 270.3974954 | AC89: 0.0005948412726
B90: 0.074 | C90: 12340.55361 | D90: 37021.66084 | E90: 14.89277386 | F90: 12391 | G90: 5652 | H90: 67420.10723 | I90: 149.9431493 | J90: 270.4029773 | K90: 27.44554331 | L90: 82.33662993 | M90: 0.0331217126 | N90: 27.5577367 | O90: 12.57011765 | P90: 253.3064941 | Q90: 0.04364927812 | R90: -101.3051379 | S90: 14.92523156 | T90: 48.08314174 | U90: 2.440219443e-05 | V90: -550473.7685 | W90: -77876.10782 | X90: -0.7685774273 | Y90: -114636.49 | Z90: 11613265.43 | AA90: 560141405.3 | AB90: 270.4029773 | AC90: 0.0006030439693
B91: 0.075 | C91: 12340.45231 | D91: 37021.35692 | E91: 15.09538414 | F91: 12391 | G91: 5652 | H91: 67419.90462 | I91: 149.9423807 | J91: 270.4084601 | K91: 27.4452598 | L91: 82.33577941 | M91: 0.03357224916 | N91: 27.55767826 | O91: 12.57009099 | P91: 253.3527163 | Q91: 0.04425694183 | R91: -101.3233838 | S91: 14.92527638 | T91: 48.08258129 | U91: 2.440191001e-05 | V91: -550479.9874 | W91: -77876.98761 | X91: -0.7685861101 | Y91: -114636.3604 | Z91: 11615343.94 | AA91: 560153018.6 | AB91: 270.4084601 | AC91: 0.000611248143
B92: 0.076 | C92: 12340.35098 | D92: 37021.05295 | E92: 15.29803091 | F92: 12391 | G92: 5652 | H92: 67419.70197 | I92: 149.9416121 | J92: 270.413944 | K92: 27.44497627 | L92: 82.33492882 | M92: 0.03402286498 | N92: 27.55761983 | O92: 12.57006434 | P92: 253.3989548 | Q92: 0.04486509059 | R92: -101.3416359 | S92: 14.92532121 | T92: 48.0820208 | U92: 2.440162555e-05 | V92: -550486.207 | W92: -77877.86751 | X92: -0.768594794 | Y92: -114636.2308 | Z92: 11617423.16 | AA92: 560164634 | AB92: 270.413944 | AC92: 0.0006194537945
B93: 0.077 | C93: 12340.24964 | D93: 37020.74893 | E93: 15.50071418 | F93: 12391 | G93: 5652 | H93: 67419.49929 | I93: 149.9408435 | J93: 270.4194288 | K93: 27.44469272 | L93: 82.33407815 | M93: 0.03447356008 | N93: 27.55756142 | O93: 12.5700377 | P93: 253.4452095 | Q93: 0.0454737248 | R93: -101.3598943 | S93: 14.92536604 | T93: 48.08146025 | U93: 2.440134107e-05 | V93: -550492.4273 | W93: -77878.74751 | X93: -0.768603479 | Y93: -114636.1011 | Z93: 11619503.1 | AA93: 560176251.4 | AB93: 270.4194288 | AC93: 0.000627660924
B94: 0.078 | C94: 12340.14828 | D94: 37020.44485 | E94: 15.70343397 | F94: 12391 | G94: 5652 | H94: 67419.29657 | I94: 149.9400749 | J94: 270.4249147 | K94: 27.44440913 | L94: 82.33322739 | M94: 0.03492433451 | N94: 27.55750302 | O94: 12.57001106 | P94: 253.4914805 | Q94: 0.04608284486 | R94: -101.3781591 | S94: 14.92541089 | T94: 48.08089964 | U94: 2.440105657e-05 | V94: -550498.6484 | W94: -77879.62761 | X94: -0.7686121649 | Y94: -114635.9715 | Z94: 11621583.75 | AA94: 560187870.9 | AB94: 270.4249147 | AC94: 0.0006358695322
B95: 0.079 | C95: 12340.0469 | D95: 37020.14071 | E95: 15.90619029 | F95: 12391 | G95: 5652 | H95: 67419.09381 | I95: 149.9393063 | J95: 270.4304015 | K95: 27.44412552 | L95: 82.33237656 | M95: 0.03537518829 | N95: 27.55744463 | O95: 12.56998443 | P95: 253.5377678 | Q95: 0.04669245118 | R95: -101.3964301 | S95: 14.92545574 | T95: 48.08033899 | U95: 2.440077204e-05 | V95: -550504.8702 | W95: -77880.50781 | X95: -0.7686208518 | Y95: -114635.8418 | Z95: 11623665.13 | AA95: 560199492.5 | AB95: 270.4304015 | AC95: 0.0006440796196
B96: 0.08 | C96: 12339.94551 | D96: 37019.83653 | E96: 16.10898315 | F96: 12391 | G96: 5652 | H96: 67418.89102 | I96: 149.9385377 | J96: 270.4358894 | K96: 27.44384188 | L96: 82.33152564 | M96: 0.03582612144 | N96: 27.55738626 | O96: 12.5699578 | P96: 253.5840713 | Q96: 0.04730254418 | R96: -101.4147075 | S96: 14.92550061 | T96: 48.07977828 | U96: 2.440048748e-05 | V96: -550511.0927 | W96: -77881.38812 | X96: -0.7686295398 | Y96: -114635.7121 | Z96: 11625747.22 | AA96: 560211116.1 | AB96: 270.4358894 | AC96: 0.0006522911867
B97: 0.081 | C97: 12339.84409 | D97: 37019.53228 | E97: 16.31181256 | F97: 12391 | G97: 5652 | H97: 67418.68819 | I97: 149.9377691 | J97: 270.4413782 | K97: 27.44355822 | L97: 82.33067465 | M97: 0.03627713399 | N97: 27.55732789 | O97: 12.56993118 | P97: 253.6303912 | Q97: 0.04791312426 | R97: -101.4329912 | S97: 14.92554548 | T97: 48.07921752 | U97: 2.440020289e-05 | V97: -550517.316 | W97: -77882.26853 | X97: -0.7686382288 | Y97: -114635.5825 | Z97: 11627830.03 | AA97: 560222741.9 | AB97: 270.4413782 | AC97: 0.000660504234
B98: 0.082 | C98: 12339.74266 | D98: 37019.22798 | E98: 16.51467854 | F98: 12391 | G98: 5652 | H98: 67418.48532 | I98: 149.9370004 | J98: 270.4468681 | K98: 27.44327452 | L98: 82.32982357 | M98: 0.03672822598 | N98: 27.55726955 | O98: 12.56990457 | P98: 253.6767273 | Q98: 0.04852419183 | R98: -101.4512812 | S98: 14.92559036 | T98: 48.07865671 | U98: 2.439991828e-05 | V98: -550523.54 | W98: -77883.14904 | X98: -0.7686469188 | Y98: -114635.4528 | Z98: 11629913.56 | AA98: 560234369.7 | AB98: 270.4468681 | AC98: 0.0006687187619
B99: 0.083 | C99: 12339.64121 | D99: 37018.92363 | E99: 16.71758111 | F99: 12391 | G99: 5652 | H99: 67418.28242 | I99: 149.9362318 | J99: 270.4523589 | K99: 27.44299081 | L99: 82.32897242 | M99: 0.03717939742 | N99: 27.55721121 | O99: 12.56987796 | P99: 253.7230797 | Q99: 0.04913574731 | R99: -101.4695776 | S99: 14.92563525 | T99: 48.07809585 | U99: 2.439963364e-05 | V99: -550529.7647 | W99: -77884.02966 | X99: -0.7686556098 | Y99: -114635.3231 | Z99: 11631997.81 | AA99: 560245999.6 | AB99: 270.4523589 | AC99: 0.0006769347711
B100: 0.084 | C100: 12339.53974 | D100: 37018.61922 | E100: 16.92052026 | F100: 12391 | G100: 5652 | H100: 67418.07948 | I100: 149.9354631 | J100: 270.4578508 | K100: 27.44270706 | L100: 82.32812118 | M100: 0.03763064836 | N100: 27.55715289 | O100: 12.56985135 | P100: 253.7694485 | Q100: 0.04974779109 | R100: -101.4878803 | S100: 14.92568014 | T100: 48.07753493 | U100: 2.439934898e-05 | V100: -550535.9901 | W100: -77884.91038 | X100: -0.7686643018 | Y100: -114635.1934 | Z100: 11634082.78 | AA100: 560257631.6 | AB100: 270.4578508 | AC100: 0.000685152262
B101: 0.085 | C101: 12339.43825 | D101: 37018.31476 | E101: 17.12349602 | F101: 12391 | G101: 5652 | H101: 67417.8765 | I101: 149.9346945 | J101: 270.4633437 | K101: 27.44242329 | L101: 82.32726986 | M101: 0.03808197881 | N101: 27.55709458 | O101: 12.56982476 | P101: 253.8158335 | Q101: 0.05036032361 | R101: -101.5061893 | S101: 14.92572505 | T101: 48.07697396 | U101: 2.439906428e-05 | V101: -550542.2163 | W101: -77885.7912 | X101: -0.7686729948 | Y101: -114635.0636 | Z101: 11636168.47 | AA101: 560269265.7 | AB101: 270.4633437 | AC101: 0.0006933712351
B102: 0.086 | C102: 12339.33675 | D102: 37018.01024 | E102: 17.3265084 | F102: 12391 | G102: 5652 | H102: 67417.67349 | I102: 149.9339258 | J102: 270.4688376 | K102: 27.44213949 | L102: 82.32641847 | M102: 0.0385333888 | N102: 27.55703628 | O102: 12.56979817 | P102: 253.8622349 | Q102: 0.05097334526 | R102: -101.5245046 | S102: 14.92576996 | T102: 48.07641294 | U102: 2.439877957e-05 | V102: -550548.4432 | W102: -77886.67213 | X102: -0.7686816889 | Y102: -114634.9339 | Z102: 11638254.88 | AA102: 560280901.9 | AB102: 270.4688376 | AC102: 0.000701591691
B103: 0.087 | C103: 12339.23522 | D103: 37017.70566 | E103: 17.52955741 | F103: 12391 | G103: 5652 | H103: 67417.47044 | I103: 149.9331571 | J103: 270.4743324 | K103: 27.44185566 | L103: 82.32556699 | M103: 0.03898487837 | N103: 27.556978 | O103: 12.56977158 | P103: 253.9086527 | Q103: 0.05158685645 | R103: -101.5428263 | S103: 14.92581488 | T103: 48.07585186 | U103: 2.439849482e-05 | V103: -550554.6708 | W103: -77887.55315 | X103: -0.768690384 | Y103: -114634.8042 | Z103: 11640342.01 | AA103: 560292540.1 | AB103: 270.4743324 | AC103: 0.0007098136302
B104: 0.088 | C104: 12339.13368 | D104: 37017.40104 | E104: 17.73264306 | F104: 12391 | G104: 5652 | H104: 67417.26736 | I104: 149.9323884 | J104: 270.4798283 | K104: 27.44157181 | L104: 82.32471543 | M104: 0.03943644754 | N104: 27.55691973 | O104: 12.569745 | P104: 253.9550867 | Q104: 0.05220085761 | R104: -101.5611543 | S104: 14.92585981 | T104: 48.07529074 | U104: 2.439821005e-05 | V104: -550560.8991 | W104: -77888.43429 | X104: -0.76869908 | Y104: -114634.6744 | Z104: 11642429.86 | AA104: 560304180.5 | AB104: 270.4798283 | AC104: 0.0007180370531
B105: 0.089 | C105: 12339.03212 | D105: 37017.09635 | E105: 17.93576537 | F105: 12391 | G105: 5652 | H105: 67417.06423 | I105: 149.9316197 | J105: 270.4853252 | K105: 27.44128793 | L105: 82.32386379 | M105: 0.03988809634 | N105: 27.55686147 | O105: 12.56971843 | P105: 254.0015371 | Q105: 0.05281534914 | R105: -101.5794887 | S105: 14.92590475 | T105: 48.07472956 | U105: 2.439792525e-05 | V105: -550567.1282 | W105: -77889.31552 | X105: -0.7687077771 | Y105: -114634.5447 | Z105: 11644518.44 | AA105: 560315822.9 | AB105: 270.4853252 | AC105: 0.0007262619603
B106: 0.09 | C106: 12338.93054 | D106: 37016.79161 | E106: 18.13892435 | F106: 12391 | G106: 5652 | H106: 67416.86108 | I106: 149.930851 | J106: 270.4908231 | K106: 27.44100403 | L106: 82.32301208 | M106: 0.0403398248 | N106: 27.55680323 | O106: 12.56969186 | P106: 254.0480039 | Q106: 0.05343033145 | R106: -101.5978294 | S106: 14.9259497 | T106: 48.07416833 | U106: 2.439764043e-05 | V106: -550573.358 | W106: -77890.19686 | X106: -0.7687164753 | Y106: -114634.4149 | Z106: 11646607.74 | AA106: 560327467.4 | AB106: 270.4908231 | AC106: 0.0007344883523
B107: 0.091 | C107: 12338.82894 | D107: 37016.48682 | E107: 18.34212001 | F107: 12391 | G107: 5652 | H107: 67416.65788 | I107: 149.9300823 | J107: 270.496322 | K107: 27.44072009 | L107: 82.32216028 | M107: 0.04079163294 | N107: 27.556745 | O107: 12.5696653 | P107: 254.0944871 | Q107: 0.05404580496 | R107: -101.6161765 | S107: 14.92599465 | T107: 48.07360704 | U107: 2.439735557e-05 | V107: -550579.5886 | W107: -77891.0783 | X107: -0.7687251744 | Y107: -114634.2852 | Z107: 11648697.76 | AA107: 560339114 | AB107: 270.496322 | AC107: 0.0007427162297
B108: 0.092 | C108: 12338.72732 | D108: 37016.18197 | E108: 18.54535236 | F108: 12391 | G108: 5652 | H108: 67416.45465 | I108: 149.9293136 | J108: 270.5018219 | K108: 27.44043613 | L108: 82.3213084 | M108: 0.0412435208 | N108: 27.55668678 | O108: 12.56963874 | P108: 254.1409866 | Q108: 0.05466177008 | R108: -101.6345299 | S108: 14.92603961 | T108: 48.0730457 | U108: 2.439707069e-05 | V108: -550585.8198 | W108: -77891.95984 | X108: -0.7687338746 | Y108: -114634.1554 | Z108: 11650788.5 | AA108: 560350762.7 | AB108: 270.5018219 | AC108: 0.0007509455929
B109: 0.093 | C109: 12338.62569 | D109: 37015.87707 | E109: 18.74862142 | F109: 12391 | G109: 5652 | H109: 67416.25138 | I109: 149.9285448 | J109: 270.5073228 | K109: 27.44015215 | L109: 82.32045644 | M109: 0.0416954884 | N109: 27.55662857 | O109: 12.56961219 | P109: 254.1875026 | Q109: 0.05527822723 | R109: -101.6528897 | S109: 14.92608459 | T109: 48.07248431 | U109: 2.439678579e-05 | V109: -550592.0518 | W109: -77892.84149 | X109: -0.7687425757 | Y109: -114634.0256 | Z109: 11652879.96 | AA109: 560362413.5 | AB109: 270.5073228 | AC109: 0.0007591764424
B110: 0.094 | C110: 12338.52404 | D110: 37015.57211 | E110: 18.9519272 | F110: 12391 | G110: 5652 | H110: 67416.04807 | I110: 149.9277761 | J110: 270.5128248 | K110: 27.43986813 | L110: 82.31960439 | M110: 0.04214753577 | N110: 27.55657038 | O110: 12.56958565 | P110: 254.2340349 | Q110: 0.05589517683 | R110: -101.6712559 | S110: 14.92612957 | T110: 48.07192287 | U110: 2.439650086e-05 | V110: -550598.2845 | W110: -77893.72324 | X110: -0.7687512779 | Y110: -114633.8958 | Z110: 11654972.15 | AA110: 560374066.4 | AB110: 270.5128248 | AC110: 0.0007674087788
B111: 0.095 | C111: 12338.42237 | D111: 37015.2671 | E111: 19.15526971 | F111: 12391 | G111: 5652 | H111: 67415.84473 | I111: 149.9270073 | J111: 270.5183277 | K111: 27.43958409 | L111: 82.31875227 | M111: 0.04259966295 | N111: 27.5565122 | O111: 12.56955911 | P111: 254.2805836 | Q111: 0.05651261927 | R111: -101.6896284 | S111: 14.92617456 | T111: 48.07136138 | U111: 2.43962159e-05 | V111: -550604.518 | W111: -77894.60509 | X111: -0.7687599811 | Y111: -114633.766 | Z111: 11657065.07 | AA111: 560385721.4 | AB111: 270.5183277 | AC111: 0.0007756426025
B112: 0.096 | C112: 12338.32068 | D112: 37014.96203 | E112: 19.35864897 | F112: 12391 | G112: 5652 | H112: 67415.64135 | I112: 149.9262386 | J112: 270.5238316 | K112: 27.43930002 | L112: 82.31790007 | M112: 0.04305186995 | N112: 27.55645404 | O112: 12.56953258 | P112: 254.3271487 | Q112: 0.05713055499 | R112: -101.7080073 | S112: 14.92621955 | T112: 48.07079983 | U112: 2.439593091e-05 | V112: -550610.7522 | W112: -77895.48705 | X112: -0.7687686854 | Y112: -114633.6362 | Z112: 11659158.7 | AA112: 560397378.4 | AB112: 270.5238316 | AC112: 0.0007838779142
B113: 0.097 | C113: 12338.21897 | D113: 37014.6569 | E113: 19.56206498 | F113: 12391 | G113: 5652 | H113: 67415.43794 | I113: 149.9254698 | J113: 270.5293366 | K113: 27.43901593 | L113: 82.31704779 | M113: 0.04350415681 | N113: 27.55639588 | O113: 12.56950606 | P113: 254.3737303 | Q113: 0.05774898439 | R113: -101.7263925 | S113: 14.92626456 | T113: 48.07023823 | U113: 2.43956459e-05 | V113: -550616.9871 | W113: -77896.36911 | X113: -0.7687773906 | Y113: -114633.5064 | Z113: 11661253.07 | AA113: 560409037.6 | AB113: 270.5293366 | AC113: 0.0007921147143
B114: 0.098 | C114: 12338.11724 | D114: 37014.35172 | E114: 19.76551777 | F114: 12391 | G114: 5652 | H114: 67415.23448 | I114: 149.924701 | J114: 270.5348425 | K114: 27.43873181 | L114: 82.31619542 | M114: 0.04395652355 | N114: 27.55633775 | O114: 12.56947954 | P114: 254.4203283 | Q114: 0.0583679079 | R114: -101.7447842 | S114: 14.92630957 | T114: 48.06967658 | U114: 2.439536086e-05 | V114: -550623.2227 | W114: -77897.25127 | X114: -0.7687860969 | Y114: -114633.3766 | Z114: 11663348.15 | AA114: 560420698.8 | AB114: 270.5348425 | AC114: 0.0008003530033
B115: 0.099 | C115: 12338.0155 | D115: 37014.04649 | E115: 19.96900734 | F115: 12391 | G115: 5652 | H115: 67415.03099 | I115: 149.9239323 | J115: 270.5403495 | K115: 27.43844766 | L115: 82.31534298 | M115: 0.04440897021 | N115: 27.55627962 | O115: 12.56945302 | P115: 254.4669427 | Q115: 0.05898732593 | R115: -101.7631822 | S115: 14.92635459 | T115: 48.06911487 | U115: 2.43950758e-05 | V115: -550629.4591 | W115: -77898.13354 | X115: -0.7687948042 | Y115: -114633.2467 | Z115: 11665443.97 | AA115: 560432362.2 | AB115: 270.5403495 | AC115: 0.0008085927817
B116: 0.1 | C116: 12337.91373 | D116: 37013.7412 | E116: 20.1725337 | F116: 12391 | G116: 5652 | H116: 67414.82747 | I116: 149.9231635 | J116: 270.5458575 | K116: 27.43816348 | L116: 82.31449045 | M116: 0.04486149681 | N116: 27.55622151 | O116: 12.56942651 | P116: 254.5135736 | Q116: 0.05960723889 | R116: -101.7815865 | S116: 14.92639962 | T116: 48.06855311 | U116: 2.43947907e-05 | V116: -550635.6962 | W116: -77899.01591 | X116: -0.7688035125 | Y116: -114633.1169 | Z116: 11667540.51 | AA116: 560444027.6 | AB116: 270.5458575 | AC116: 0.0008168340501
B117: 0.101 | C117: 12337.81195 | D117: 37013.43585 | E117: 20.37609687 | F117: 12391 | G117: 5652 | H117: 67414.6239 | I117: 149.9223947 | J117: 270.5513665 | K117: 27.43787928 | L117: 82.31363785 | M117: 0.04531410338 | N117: 27.5561634 | O117: 12.56940001 | P117: 254.5602209 | Q117: 0.06022764721 | R117: -101.7999973 | S117: 14.92644466 | T117: 48.0679913 | U117: 2.439450559e-05 | V117: -550641.934 | W117: -77899.89838 | X117: -0.7688122218 | Y117: -114632.987 | Z117: 11669637.77 | AA117: 560455695.2 | AB117: 270.5513665 | AC117: 0.000825076809
B118: 0.102 | C118: 12337.71015 | D118: 37013.13045 | E118: 20.57969687 | F118: 12391 | G118: 5652 | H118: 67414.4203 | I118: 149.9216258 | J118: 270.5568764 | K118: 27.43759505 | L118: 82.31278516 | M118: 0.04576678995 | N118: 27.55610532 | O118: 12.56937352 | P118: 254.6068847 | Q118: 0.0608485513 | R118: -101.8184145 | S118: 14.92648971 | T118: 48.06742944 | U118: 2.439422044e-05 | V118: -550648.1726 | W118: -77900.78096 | X118: -0.7688209322 | Y118: -114632.8572 | Z118: 11671735.76 | AA118: 560467364.8 | AB118: 270.5568764 | AC118: 0.0008333210588
B119: 0.103 | C119: 12337.60833 | D119: 37012.825 | E119: 20.7833337 | F119: 12391 | G119: 5652 | H119: 67414.21667 | I119: 149.920857 | J119: 270.5623875 | K119: 27.4373108 | L119: 82.31193239 | M119: 0.04621955655 | N119: 27.55604724 | O119: 12.56934703 | P119: 254.653565 | Q119: 0.06146995158 | R119: -101.836838 | S119: 14.92653477 | T119: 48.06686752 | U119: 2.439393527e-05 | V119: -550654.4119 | W119: -77901.66364 | X119: -0.7688296436 | Y119: -114632.7273 | Z119: 11673834.48 | AA119: 560479036.5 | AB119: 270.5623875 | AC119: 0.0008415668002
B120: 0.104 | C120: 12337.5065 | D120: 37012.51949 | E120: 20.98700737 | F120: 12391 | G120: 5652 | H120: 67414.01299 | I120: 149.9200882 | J120: 270.5678995 | K120: 27.43702652 | L120: 82.31107955 | M120: 0.04667240321 | N120: 27.55598918 | O120: 12.56932054 | P120: 254.7002617 | Q120: 0.06209184847 | R120: -101.8552679 | S120: 14.92657983 | T120: 48.06630555 | U120: 2.439365007e-05 | V120: -550660.6519 | W120: -77902.54642 | X120: -0.768838356 | Y120: -114632.5974 | Z120: 11675933.92 | AA120: 560490710.4 | AB120: 270.5678995 | AC120: 0.0008498140336
B121: 0.105 | C121: 12337.40464 | D121: 37012.21392 | E121: 21.19071791 | F121: 12391 | G121: 5652 | H121: 67413.80928 | I121: 149.9193194 | J121: 270.5734125 | K121: 27.43674221 | L121: 82.31022662 | M121: 0.04712532995 | N121: 27.55593113 | O121: 12.56929407 | P121: 254.7469749 | Q121: 0.06271424238 | R121: -101.8737043 | S121: 14.9266249 | T121: 48.06574353 | U121: 2.439336484e-05 | V121: -550666.8927 | W121: -77903.42931 | X121: -0.7688470694 | Y121: -114632.4675 | Z121: 11678034.1 | AA121: 560502386.3 | AB121: 270.5734125 | AC121: 0.0008580627595
B122: 0.106 | C122: 12337.30277 | D122: 37011.9083 | E122: 21.39446532 | F122: 12391 | G122: 5652 | H122: 67413.60553 | I122: 149.9185505 | J122: 270.5789265 | K122: 27.43645787 | L122: 82.30937361 | M122: 0.0475783368 | N122: 27.5558731 | O122: 12.56926759 | P122: 254.7937047 | Q122: 0.06333713374 | R122: -101.892147 | S122: 14.92666998 | T122: 48.06518145 | U122: 2.439307959e-05 | V122: -550673.1342 | W122: -77904.3123 | X122: -0.7688557838 | Y122: -114632.3376 | Z122: 11680135 | AA122: 560514064.3 | AB122: 270.5789265 | AC122: 0.0008663129785
B123: 0.107 | C123: 12337.20088 | D123: 37011.60263 | E123: 21.59824961 | F123: 12391 | G123: 5652 | H123: 67413.40175 | I123: 149.9177816 | J123: 270.5844416 | K123: 27.4361735 | L123: 82.30852051 | M123: 0.0480314238 | N123: 27.55581508 | O123: 12.56924113 | P123: 254.8404509 | Q123: 0.06396052297 | R123: -101.9105962 | S123: 14.92671507 | T123: 48.06461933 | U123: 2.439279431e-05 | V123: -550679.3764 | W123: -77905.19539 | X123: -0.7688644993 | Y123: -114632.2077 | Z123: 11682236.63 | AA123: 560525744.5 | AB123: 270.5844416 | AC123: 0.0008745646911
B124: 0.108 | C124: 12337.09896 | D124: 37011.29689 | E124: 21.8020708 | F124: 12391 | G124: 5652 | H124: 67413.19793 | I124: 149.9170128 | J124: 270.5899576 | K124: 27.43588911 | L124: 82.30766734 | M124: 0.04848459097 | N124: 27.55575707 | O124: 12.56921467 | P124: 254.8872137 | Q124: 0.06458441048 | R124: -101.9290517 | S124: 14.92676017 | T124: 48.06405715 | U124: 2.4392509e-05 | V124: -550685.6194 | W124: -77906.07859 | X124: -0.7688732158 | Y124: -114632.0778 | Z124: 11684338.98 | AA124: 560537426.7 | AB124: 270.5899576 | AC124: 0.0008828178978
B125: 0.109 | C125: 12336.99704 | D125: 37010.99111 | E125: 22.00592891 | F125: 12391 | G125: 5652 | H125: 67412.99407 | I125: 149.9162439 | J125: 270.5954747 | K125: 27.4356047 | L125: 82.30681409 | M125: 0.04893783834 | N125: 27.55569907 | O125: 12.56918821 | P125: 254.9339929 | Q125: 0.06520879671 | R125: -101.9475137 | S125: 14.92680528 | T125: 48.06349491 | U125: 2.439222367e-05 | V125: -550691.8631 | W125: -77906.96189 | X125: -0.7688819333 | Y125: -114631.9479 | Z125: 11686442.07 | AA125: 560549111.1 | AB125: 270.5954747 | AC125: 0.0008910725991
B126: 0.11 | C126: 12336.89509 | D126: 37010.68526 | E126: 22.20982394 | F126: 12391 | G126: 5652 | H126: 67412.79018 | I126: 149.915475 | J126: 270.6009928 | K126: 27.43532025 | L126: 82.30596075 | M126: 0.04939116593 | N126: 27.55564109 | O126: 12.56916177 | P126: 254.9807888 | Q126: 0.06583368205 | R126: -101.965982 | S126: 14.92685039 | T126: 48.06293263 | U126: 2.439193831e-05 | V126: -550698.1075 | W126: -77907.8453 | X126: -0.7688906519 | Y126: -114631.8179 | Z126: 11688545.89 | AA126: 560560797.5 | AB126: 270.6009928 | AC126: 0.0008993287956
B127: 0.111 | C127: 12336.79312 | D127: 37010.37937 | E127: 22.4137559 | F127: 12391 | G127: 5652 | H127: 67412.58624 | I127: 149.9147061 | J127: 270.6065119 | K127: 27.43503578 | L127: 82.30510734 | M127: 0.04984457379 | N127: 27.55558312 | O127: 12.56913532 | P127: 255.0276011 | Q127: 0.06645906695 | R127: -101.9844568 | S127: 14.92689552 | T127: 48.06237029 | U127: 2.439165292e-05 | V127: -550704.3527 | W127: -77908.72881 | X127: -0.7688993714 | Y127: -114631.688 | Z127: 11690650.43 | AA127: 560572486 | AB127: 270.6065119 | AC127: 0.0009075864877
B128: 0.112 | C128: 12336.69114 | D128: 37010.07341 | E128: 22.61772481 | F128: 12391 | G128: 5652 | H128: 67412.38228 | I128: 149.9139372 | J128: 270.612032 | K128: 27.43475128 | L128: 82.30425384 | M128: 0.05029806192 | N128: 27.55552517 | O128: 12.56910889 | P128: 255.07443 | Q128: 0.06708495183 | R128: -102.002938 | S128: 14.92694065 | T128: 48.06180789 | U128: 2.439136751e-05 | V128: -550710.5986 | W128: -77909.61242 | X128: -0.768908092 | Y128: -114631.5581 | Z128: 11692755.71 | AA128: 560584176.7 | AB128: 270.612032 | AC128: 0.0009158456759
B129: 0.113 | C129: 12336.58913 | D129: 37009.7674 | E129: 22.82173069 | F129: 12391 | G129: 5652 | H129: 67412.17827 | I129: 149.9131683 | J129: 270.6175531 | K129: 27.43446675 | L129: 82.30340026 | M129: 0.05075163038 | N129: 27.55546722 | O129: 12.56908246 | P129: 255.1212755 | Q129: 0.06771133709 | R129: -102.0214256 | S129: 14.92698579 | T129: 48.06124545 | U129: 2.439108207e-05 | V129: -550716.8452 | W129: -77910.49614 | X129: -0.7689168136 | Y129: -114631.4281 | Z129: 11694861.72 | AA129: 560595869.4 | AB129: 270.6175531 | AC129: 0.0009241063609
B130: 0.114 | C130: 12336.48711 | D130: 37009.46134 | E130: 23.02577354 | F130: 12391 | G130: 5652 | H130: 67411.97423 | I130: 149.9123994 | J130: 270.6230753 | K130: 27.4341822 | L130: 82.3025466 | M130: 0.05120527917 | N130: 27.55540929 | O130: 12.56905604 | P130: 255.1681375 | Q130: 0.06833822317 | R130: -102.0399197 | S130: 14.92703094 | T130: 48.06068295 | U130: 2.43907966e-05 | V130: -550723.0926 | W130: -77911.37996 | X130: -0.7689255363 | Y130: -114631.2981 | Z130: 11696968.46 | AA130: 560607564.3 | AB130: 270.6230753 | AC130: 0.0009323685431
B131: 0.115 | C131: 12336.38507 | D131: 37009.15522 | E131: 23.22985338 | F131: 12391 | G131: 5652 | H131: 67411.77015 | I131: 149.9116305 | J131: 270.6285984 | K131: 27.43389762 | L131: 82.30169286 | M131: 0.05165900834 | N131: 27.55535138 | O131: 12.56902962 | P131: 255.2150161 | Q131: 0.06896561049 | R131: -102.0584202 | S131: 14.92707609 | T131: 48.0601204 | U131: 2.43905111e-05 | V131: -550729.3407 | W131: -77912.26389 | X131: -0.7689342599 | Y131: -114631.1682 | Z131: 11699075.93 | AA131: 560619261.3 | AB131: 270.6285984 | AC131: 0.000940632223
B132: 0.116 | C132: 12336.28301 | D132: 37008.84904 | E132: 23.43397022 | F132: 12391 | G132: 5652 | H132: 67411.56603 | I132: 149.9108616 | J132: 270.6341226 | K132: 27.43361301 | L132: 82.30083904 | M132: 0.05211281791 | N132: 27.55529347 | O132: 12.56900321 | P132: 255.2619113 | Q132: 0.06959349947 | R132: -102.0769271 | S132: 14.92712126 | T132: 48.0595578 | U132: 2.439022558e-05 | V132: -550735.5895 | W132: -77913.14792 | X132: -0.7689429846 | Y132: -114631.0382 | Z132: 11701184.13 | AA132: 560630960.4 | AB132: 270.6341226 | AC132: 0.0009488974012
B133: 0.117 | C133: 12336.18094 | D133: 37008.54281 | E133: 23.63812407 | F133: 12391 | G133: 5652 | H133: 67411.36188 | I133: 149.9100926 | J133: 270.6396478 | K133: 27.43332838 | L133: 82.29998514 | M133: 0.0525667079 | N133: 27.55523558 | O133: 12.5689768 | P133: 255.308823 | Q133: 0.07022189054 | R133: -102.0954405 | S133: 14.92716643 | T133: 48.05899514 | U133: 2.438994003e-05 | V133: -550741.8391 | W133: -77914.03205 | X133: -0.7689517103 | Y133: -114630.9082 | Z133: 11703293.06 | AA133: 560642661.5 | AB133: 270.6396478 | AC133: 0.0009571640782
B134: 0.118 | C134: 12336.07884 | D134: 37008.23653 | E134: 23.84231496 | F134: 12391 | G134: 5652 | H134: 67411.15769 | I134: 149.9093237 | J134: 270.645174 | K134: 27.43304372 | L134: 82.29913116 | M134: 0.05302067836 | N134: 27.55517771 | O134: 12.5689504 | P134: 255.3557514 | Q134: 0.07085078412 | R134: -102.1139602 | S134: 14.92721162 | T134: 48.05843243 | U134: 2.438965446e-05 | V134: -550748.0894 | W134: -77914.91629 | X134: -0.7689604371 | Y134: -114630.7782 | Z134: 11705402.73 | AA134: 560654364.8 | AB134: 270.645174 | AC134: 0.0009654322544
B135: 0.119 | C135: 12335.97673 | D135: 37007.93019 | E135: 24.04654288 | F135: 12391 | G135: 5652 | H135: 67410.95346 | I135: 149.9085547 | J135: 270.6507012 | K135: 27.43275903 | L135: 82.29827709 | M135: 0.0534747293 | N135: 27.55511984 | O135: 12.56892401 | P135: 255.4026964 | Q135: 0.07148018064 | R135: -102.1324865 | S135: 14.92725681 | T135: 48.05786966 | U135: 2.438936885e-05 | V135: -550754.3404 | W135: -77915.80063 | X135: -0.7689691648 | Y135: -114630.6482 | Z135: 11707513.12 | AA135: 560666070.2 | AB135: 270.6507012 | AC135: 0.0009737019305
B136: 0.12 | C136: 12335.8746 | D136: 37007.62379 | E136: 24.25080785 | F136: 12391 | G136: 5652 | H136: 67410.74919 | I136: 149.9077857 | J136: 270.6562294 | K136: 27.43247431 | L136: 82.29742294 | M136: 0.05392886076 | N136: 27.55506199 | O136: 12.56889762 | P136: 255.449658 | Q136: 0.07211008051 | R136: -102.1510192 | S136: 14.92730201 | T136: 48.05730685 | U136: 2.438908323e-05 | V136: -550760.5922 | W136: -77916.68507 | X136: -0.7689778936 | Y136: -114630.5181 | Z136: 11709624.26 | AA136: 560677777.7 | AB136: 270.6562294 | AC136: 0.0009819731069
B137: 0.121 | C137: 12335.77245 | D137: 37007.31734 | E137: 24.45510989 | F137: 12391 | G137: 5652 | H137: 67410.54489 | I137: 149.9070168 | J137: 270.6617587 | K137: 27.43218957 | L137: 82.29656872 | M137: 0.05438307276 | N137: 27.55500416 | O137: 12.56887124 | P137: 255.4966362 | Q137: 0.07274048418 | R137: -102.1695583 | S137: 14.92734722 | T137: 48.05674398 | U137: 2.438879757e-05 | V137: -550766.8447 | W137: -77917.56962 | X137: -0.7689866235 | Y137: -114630.3881 | Z137: 11711736.12 | AA137: 560689487.4 | AB137: 270.6617587 | AC137: 0.0009902457842
B138: 0.122 | C138: 12335.67028 | D138: 37007.01083 | E138: 24.659449 | F138: 12391 | G138: 5652 | H138: 67410.34055 | I138: 149.9062478 | J138: 270.667289 | K138: 27.4319048 | L138: 82.29571441 | M138: 0.05483736533 | N138: 27.55494633 | O138: 12.56884486 | P138: 255.5436311 | Q138: 0.07337139205 | R138: -102.1881039 | S138: 14.92739243 | T138: 48.05618106 | U138: 2.438851189e-05 | V138: -550773.098 | W138: -77918.45428 | X138: -0.7689953543 | Y138: -114630.2581 | Z138: 11713848.72 | AA138: 560701199.1 | AB138: 270.667289 | AC138: 0.0009985199629
B139: 0.123 | C139: 12335.56809 | D139: 37006.70426 | E139: 24.86382521 | F139: 12391 | G139: 5652 | H139: 67410.13617 | I139: 149.9054788 | J139: 270.6728203 | K139: 27.43162001 | L139: 82.29486002 | M139: 0.05529173851 | N139: 27.55488852 | O139: 12.56881849 | P139: 255.5906426 | Q139: 0.07400280456 | R139: -102.2066559 | S139: 14.92743766 | T139: 48.05561808 | U139: 2.438822618e-05 | V139: -550779.3519 | W139: -77919.33903 | X139: -0.7690040862 | Y139: -114630.128 | Z139: 11715962.05 | AA139: 560712913 | AB139: 270.6728203 | AC139: 0.001006795643
B140: 0.124 | C140: 12335.46588 | D140: 37006.39764 | E140: 25.06823852 | F140: 12391 | G140: 5652 | H140: 67409.93176 | I140: 149.9047098 | J140: 270.6783526 | K140: 27.43133518 | L140: 82.29400554 | M140: 0.05574619232 | N140: 27.55483072 | O140: 12.56879213 | P140: 255.6376707 | Q140: 0.07463472214 | R140: -102.2252144 | S140: 14.92748289 | T140: 48.05505505 | U140: 2.438794044e-05 | V140: -550785.6067 | W140: -77920.2239 | X140: -0.7690128191 | Y140: -114629.998 | Z140: 11718076.12 | AA140: 560724628.9 | AB140: 270.6783526 | AC140: 0.001015072826
B141: 0.125 | C141: 12335.36366 | D141: 37006.09097 | E141: 25.27268895 | F141: 12391 | G141: 5652 | H141: 67409.72731 | I141: 149.9039408 | J141: 270.6838859 | K141: 27.43105033 | L141: 82.29315099 | M141: 0.05620072679 | N141: 27.55477294 | O141: 12.56876577 | P141: 255.6847155 | Q141: 0.07526714521 | R141: -102.2437794 | S141: 14.92752813 | T141: 48.05449197 | U141: 2.438765468e-05 | V141: -550791.8621 | W141: -77921.10886 | X141: -0.769021553 | Y141: -114629.8679 | Z141: 11720190.92 | AA141: 560736347 | AB141: 270.6838859 | AC141: 0.001023351512
B142: 0.126 | C142: 12335.26141 | D142: 37005.78424 | E142: 25.47717651 | F142: 12391 | G142: 5652 | H142: 67409.52282 | I142: 149.9031717 | J142: 270.6894202 | K142: 27.43076545 | L142: 82.29229635 | M142: 0.05665534194 | N142: 27.55471517 | O142: 12.56873942 | P142: 255.731777 | Q142: 0.0759000742 | R142: -102.2623508 | S142: 14.92757338 | T142: 48.05392884 | U142: 2.438736888e-05 | V142: -550798.1183 | W142: -77921.99393 | X142: -0.769030288 | Y142: -114629.7379 | Z142: 11722306.46 | AA142: 560748067.2 | AB142: 270.6894202 | AC142: 0.001031631702
B143: 0.127 | C143: 12335.15915 | D143: 37005.47745 | E143: 25.68170121 | F143: 12391 | G143: 5652 | H143: 67409.3183 | I143: 149.9024027 | J143: 270.6949556 | K143: 27.43048055 | L143: 82.29144164 | M143: 0.05711003782 | N143: 27.55465741 | O143: 12.56871307 | P143: 255.7788552 | Q143: 0.07653350953 | R143: -102.2809287 | S143: 14.92761864 | T143: 48.05336565 | U143: 2.438708307e-05 | V143: -550804.3752 | W143: -77922.87911 | X143: -0.769039024 | Y143: -114629.6078 | Z143: 11724422.74 | AA143: 560759789.5 | AB143: 270.6949556 | AC143: 0.001039913395
B144: 0.128 | C144: 12335.05687 | D144: 37005.17061 | E144: 25.88626307 | F144: 12391 | G144: 5652 | H144: 67409.11374 | I144: 149.9016337 | J144: 270.700492 | K144: 27.43019561 | L144: 82.29058684 | M144: 0.05756481444 | N144: 27.55459966 | O144: 12.56868673 | P144: 255.82595 | Q144: 0.07716745165 | R144: -102.299513 | S144: 14.92766391 | T144: 48.05280241 | U144: 2.438679722e-05 | V144: -550810.6329 | W144: -77923.76439 | X144: -0.769047761 | Y144: -114629.4777 | Z144: =(P144-Q144)*(-Y144)*eps -> 11726539.75 | AA144: 560771513.9 | AB144: 270.700492 | AC144: =(FeedN2-C144)/FeedN2 -> 0.001048196593
B145: 0.129 | C145: 12334.95457 | D145: 37004.86371 | E145: 26.0908621 | F145: 12391 | G145: 5652 | H145: 67408.90914 | I145: 149.9008646 | J145: 270.7060294 | K145: 27.42991065 | L145: 82.28973196 | M145: 0.05801967183 | N145: 27.55454193 | O145: 12.5686604 | P145: 255.8730616 | Q145: 0.07780190096 | R145: -102.3181039 | S145: 14.92770918 | T145: 48.05223911 | U145: 2.438651135e-05 | V145: -550816.8913 | W145: -77924.64977 | X145: -0.7690564991 | Y145: -114629.3476 | Z145: 11728657.49 | AA145: =AA144+Z144*(B145-B144) -> 560783240.5 | AB145: =FindT(AA145,AB144,C145,D145,E145,F145,G145) -> 270.7060294 | AC145: 0.001056481296
B146: 0.13 | C146: =C145+R145*(B146-B145) -> 12334.85225 | D146: =FeedH2-3*(FeedN2-C146) -> 37004.55675 | E146: =2*(FeedN2-C146) -> 26.2954983 | F146: =F145 -> 12391 | G146: =G145 -> 5652 | H146: =SUM(C146:G146) -> 67408.7045 | I146: =I145+X145*(B146-B145) -> 149.9000956 | J146: =AB146 -> 270.7115678 | K146: =C146/$H146*$I146 -> 27.42962567 | L146: =D146/$H146*$I146 -> 82.288877 | M146: =E146/$H146*$I146 -> 0.05847461003 | N146: =F146/$H146*$I146 -> 27.55448421 | O146: =G146/$H146*$I146 -> 12.56863407 | P146: =k0f*EXP(-Ef/Rgas/(J146+273.15))*K146 ^ 0.5 * L146 ^ 1.5 -> 255.9201898 | Q146: =k0r*EXP(-Er/Rgas/(J146+273.15))*M146 -> 0.07843685792 | R146: =-eps*(P146-Q146) -> -102.3367012 | S146: =C146/H146*MW_N2+D146/H146*MW_H2+E146/H146*MW_NH3+F146/H146*MW_Ar+G146/H146*MW_CH4 -> 14.92775447 | T146: =S146/SpecVol(J146,I146,C146:G146,w,Tc,Pc,K) -> 48.05167576 | U146: =$P$12*T146 -> 2.438622545e-05 | V146: =-(150*(1-eps)/Dp/G0*U146+7/4)*(1-eps)/eps^3/Dp/T146*G0^2 -> -550823.1505 | W146: =V146/Ar -> -77925.53526 | X146: =W146/101325 -> -0.7690652382 | Y146: =HtRxnP(J146,I146) -> -114629.2175 | Z146: 11730775.98 | AA146: 560794969.1 | AB146: 270.7115678 | AC146: 0.001064767505
B147: 0.131 | C147: 12334.74991 | D147: 37004.24974 | E147: 26.50017171 | F147: 12391 | G147: 5652 | H147: 67408.49983 | I147: 149.8993265 | J147: 270.7171072 | K147: 27.42934065 | L147: 82.28802195 | M147: 0.05892962906 | N147: 27.55442651 | O147: 12.56860775 | P147: 255.9673348 | Q147: 0.07907232293 | R147: -102.355305 | S147: 14.92779976 | T147: 48.05111236 | U147: 2.438593952e-05 | V147: -550829.4103 | W147: -77926.42085 | X147: -0.7690739783 | Y147: -114629.0874 | Z147: 11732895.2 | AA147: 560806699.9 | AB147: 270.7171072 | AC147: 0.00107305522
B148: 0.132 | C148: 12334.64756 | D148: 37003.94268 | E148: 26.70488232 | F148: 12391 | G148: 5652 | H148: 67408.29512 | I148: 149.8985574 | J148: 270.7226477 | K148: 27.42905561 | L148: 82.28716683 | M148: 0.05938472896 | N148: 27.55436882 | O148: 12.56858143 | P148: 256.0144965 | Q148: 0.07970829644 | R148: -102.3739153 | S148: 14.92784506 | T148: 48.05054891 | U148: 2.438565357e-05 | V148: -550835.671 | W148: -77927.30655 | X148: -0.7690827194 | Y148: -114628.9572 | Z148: 11735015.16 | AA148: 560818432.8 | AB148: 270.7226477 | AC148: 0.001081344441
B149: 0.133 | C149: 12334.54518 | D149: 37003.63555 | E149: 26.90963015 | F149: 12391 | G149: 5652 | H149: 67408.09037 | I149: 149.8977883 | J149: 270.7281891 | K149: 27.42877054 | L149: 82.28631162 | M149: 0.05983990975 | N149: 27.55431114 | O149: 12.56855512 | P149: 256.0616749 | Q149: 0.08034477887 | R149: -102.392532 | S149: 14.92789037 | T149: 48.0499854 | U149: 2.438536759e-05 | V149: -550841.9323 | W149: -77928.19235 | X149: -0.7690914616 | Y149: -114628.8271 | Z149: 11737135.85 | AA149: 560830167.8 | AB149: 270.7281891 | AC149: 0.00108963517
B150: 0.134 | C150: 12334.44279 | D150: 37003.32838 | E150: 27.11441521 | F150: 12391 | G150: 5652 | H150: 67407.88558 | I150: 149.8970192 | J150: 270.7337316 | K150: 27.42848544 | L150: 82.28545633 | M150: 0.06029517145 | N150: 27.55425347 | O150: 12.56852882 | P150: 256.10887 | Q150: 0.08098177066 | R150: -102.4111553 | S150: 14.92793569 | T150: 48.04942184 | U150: 2.438508158e-05 | V150: -550848.1944 | W150: -77929.07826 | X150: -0.7691002048 | Y150: -114628.697 | Z150: 11739257.29 | AA150: 560841904.9 | AB150: 270.7337316 | AC150: 0.001097927406
B151: 0.135 | C151: 12334.34038 | D151: 37003.02114 | E151: 27.31923752 | F151: 12391 | G151: 5652 | H151: 67407.68076 | I151: 149.8962501 | J151: 270.7392752 | K151: 27.42820032 | L151: 82.28460096 | M151: 0.06075051411 | N151: 27.55419582 | O151: 12.56850252 | P151: 256.1560819 | Q151: 0.08161927223 | R151: -102.4297851 | S151: 14.92798102 | T151: 48.04885823 | U151: 2.438479555e-05 | V151: -550854.4573 | W151: -77929.96427 | X151: -0.7691089491 | Y151: -114628.5668 | Z151: 11741379.46 | AA151: 560853644.2 | AB151: 270.7392752 | AC151: 0.00110622115
B152: 0.136 | C152: 12334.23795 | D152: 37002.71385 | E152: 27.52409709 | F152: 12391 | G152: 5652 | H152: 67407.4759 | I152: 149.895481 | J152: 270.7448197 | K152: 27.42791517 | L152: 82.28374551 | M152: 0.06120593774 | N152: 27.55413818 | O152: 12.56847623 | P152: 256.2033106 | Q152: 0.08225728403 | R152: -102.4484213 | S152: 14.92802635 | T152: 48.04829456 | U152: 2.438450949e-05 | V152: -550860.7209 | W152: -77930.85038 | X152: -0.7691176944 | Y152: -114628.4367 | Z152: 11743502.38 | AA152: 560865385.6 | AB152: 270.7448197 | AC152: 0.001114516403
B153: 0.137 | C153: 12334.1355 | D153: 37002.40651 | E153: 27.72899393 | F153: 12391 | G153: 5652 | H153: 67407.27101 | I153: 149.8947119 | J153: 270.7503653 | K153: 27.42762999 | L153: 82.28288998 | M153: 0.06166144239 | N153: 27.55408056 | O153: 12.56844995 | P153: 256.250556 | Q153: 0.08289580647 | R153: -102.4670641 | S153: 14.9280717 | T153: 48.04773084 | U153: 2.43842234e-05 | V153: -550866.9852 | W153: -77931.7366 | X153: -0.7691264407 | Y153: -114628.3065 | Z153: 11745626.03 | AA153: 560877129.1 | AB153: 270.7503653 | AC153: 0.001122813165
B154: 0.138 | C154: 12334.03304 | D154: 37002.09911 | E154: 27.93392806 | F154: 12391 | G154: 5652 | H154: 67407.06607 | I154: 149.8939428 | J154: 270.7559119 | K154: 27.42734479 | L154: 82.28203436 | M154: 0.06211702806 | N154: 27.55402294 | O154: 12.56842367 | P154: 256.2978182 | Q154: 0.08353483999 | R154: -102.4857133 | S154: 14.92811705 | T154: 48.04716706 | U154: 2.438393729e-05 | V154: -550873.2502 | W154: -77932.62293 | X154: -0.769135188 | Y154: -114628.1763 | Z154: 11747750.42 | AA154: 560888874.7 | AB154: 270.7559119 | AC154: 0.001131111438
B155: 0.139 | C155: 12333.93055 | D155: 37001.79165 | E155: 28.13889949 | F155: 12391 | G155: 5652 | H155: 67406.8611 | I155: 149.8931737 | J155: 270.7614595 | K155: 27.42705956 | L155: 82.28117867 | M155: 0.06257269481 | N155: 27.55396535 | O155: 12.5683974 | P155: 256.3450972 | Q155: 0.08417438503 | R155: -102.5043691 | S155: 14.92816241 | T155: 48.04660324 | U155: 2.438365114e-05 | V155: -550879.516 | W155: -77933.50935 | X155: -0.7691439364 | Y155: -114628.0461 | Z155: 11749875.55 | AA155: 560900622.4 | AB155: 270.7614595 | AC155: 0.00113941122
B156: 0.14 | C156: 12333.82805 | D156: 37001.48414 | E156: 28.34390823 | F156: 12391 | G156: 5652 | H156: 67406.65609 | I156: 149.8924045 | J156: 270.7670081 | K156: 27.4267743 | L156: 82.28032289 | M156: 0.06302844265 | N156: 27.55390776 | O156: 12.56837113 | P156: 256.3923929 | Q156: 0.08481444202 | R156: -102.5230314 | S156: 14.92820778 | T156: 48.04603936 | U156: 2.438336497e-05 | V156: -550885.7826 | W156: -77934.39589 | X156: -0.7691526858 | Y156: -114627.9159 | Z156: 11752001.43 | AA156: 560912372.3 | AB156: 270.7670081 | AC156: 0.001147712513
B157: 0.141 | C157: 12333.72552 | D157: 37001.17657 | E157: 28.54895429 | F157: 12391 | G157: 5652 | H157: 67406.45105 | I157: 149.8916354 | J157: 270.7725578 | K157: 27.42648901 | L157: 82.27946703 | M157: 0.06348427161 | N157: 27.55385019 | O157: 12.56834487 | P157: 256.4397055 | Q157: 0.08545501139 | R157: -102.5417002 | S157: 14.92825316 | T157: 48.04547542 | U157: 2.438307878e-05 | V157: -550892.0499 | W157: -77935.28253 | X157: -0.7691614362 | Y157: -114627.7857 | Z157: 11754128.04 | AA157: 560924124.3 | AB157: 270.7725578 | AC157: 0.001156015318
B158: 0.142 | C158: 12333.62298 | D158: 37000.86894 | E158: 28.75403769 | F158: 12391 | G158: 5652 | H158: 67406.24596 | I158: 149.8908662 | J158: 270.7781085 | K158: 27.42620369 | L158: 82.27861108 | M158: 0.06394018172 | N158: 27.55379263 | O158: 12.56831861 | P158: 256.4870349 | Q158: 0.08609609358 | R158: -102.5603755 | S158: 14.92829855 | T158: 48.04491143 | U158: 2.438279255e-05 | V158: -550898.3179 | W158: -77936.16927 | X158: -0.7691701877 | Y158: -114627.6555 | Z158: 11756255.4 | AA158: 560935878.5 | AB158: 270.7781085 | AC158: 0.001164319634
B159: 0.143 | C159: 12333.52042 | D159: 37000.56126 | E159: 28.95915844 | F159: 12391 | G159: 5652 | H159: 67406.04084 | I159: 149.890097 | J159: 270.7836602 | K159: 27.42591835 | L159: 82.27775506 | M159: 0.06439617302 | N159: 27.55373508 | O159: 12.56829236 | P159: 256.5343811 | Q159: 0.08673768902 | R159: -102.5790574 | S159: 14.92834394 | T159: 48.04434739 | U159: 2.43825063e-05 | V159: -550904.5866 | W159: -77937.05612 | X159: -0.7691789402 | Y159: -114627.5253 | Z159: 11758383.49 | AA159: 560947634.7 | AB159: 270.7836602 | AC159: 0.001172625463
B160: 0.144 | C160: 12333.41784 | D160: 37000.25353 | E160: 29.16431656 | F160: 12391 | G160: 5652 | H160: 67405.83568 | I160: 149.8893278 | J160: 270.7892129 | K160: 27.42563298 | L160: 82.27689895 | M160: 0.06485224553 | N160: 27.55367755 | O160: 12.56826612 | P160: 256.5817441 | Q160: 0.08737979815 | R160: -102.5977457 | S160: 14.92838934 | T160: 48.0437833 | U160: 2.438222002e-05 | V160: -550910.8561 | W160: -77937.94307 | X160: -0.7691876938 | Y160: -114627.3951 | Z160: 11760512.33 | AA160: 560959393.1 | AB160: 270.7892129 | AC160: 0.001180932805
B161: 0.145 | C161: 12333.31524 | D161: 36999.94573 | E161: 29.36951205 | F161: 12391 | G161: 5652 | H161: 67405.63049 | I161: 149.8885587 | J161: 270.7947667 | K161: 27.42534759 | L161: 82.27604276 | M161: 0.06530839928 | N161: 27.55362003 | O161: 12.56823988 | P161: 256.6291239 | Q161: 0.0880224214 | R161: -102.6164406 | S161: 14.92843476 | T161: 48.04321915 | U161: 2.438193372e-05 | V161: -550917.1264 | W161: -77938.83013 | X161: -0.7691964484 | Y161: -114627.2649 | Z161: 11762641.92 | AA161: 560971153.6 | AB161: 270.7947667 | AC161: 0.00118924166
B162: 0.146 | C162: 12333.21263 | D162: 36999.63788 | E162: 29.57474493 | F162: 12391 | G162: 5652 | H162: 67405.42526 | I162: 149.8877895 | J162: 270.8003215 | K162: 27.42506216 | L162: 82.27518649 | M162: 0.06576463429 | N162: 27.55356252 | O162: 12.56821365 | P162: 256.6765206 | Q162: 0.08866555921 | R162: -102.635142 | S162: 14.92848018 | T162: 48.04265495 | U162: 2.438164739e-05 | V162: -550923.3974 | W162: -77939.71729 | X162: -0.769205204 | Y162: -114627.1346 | Z162: 11764772.24 | AA162: 560982916.2 | AB162: 270.8003215 | AC162: 0.00119755203
B163: 0.147 | C163: 12333.10999 | D163: 36999.32998 | E163: 29.78001521 | F163: 12391 | G163: 5652 | H163: 67405.21998 | I163: 149.8870203 | J163: 270.8058773 | K163: 27.42477671 | L163: 82.27433014 | M163: 0.06622095061 | N163: 27.55350503 | O163: 12.56818743 | P163: 256.7239342 | Q163: 0.08930921201 | R163: -102.65385 | S163: 14.92852561 | T163: 48.04209069 | U163: 2.438136103e-05 | V163: -550929.6691 | W163: -77940.60456 | X163: -0.7692139606 | Y163: -114627.0044 | Z163: 11766903.31 | AA163: 560994681 | AB163: 270.8058773 | AC163: 0.001205863914
B164: 0.148 | C164: 12333.00734 | D164: 36999.02202 | E164: 29.98532291 | F164: 12391 | G164: 5652 | H164: 67405.01468 | I164: 149.886251 | J164: 270.8114341 | K164: 27.42449123 | L164: 82.2734737 | M164: 0.06667734826 | N164: 27.55344755 | O164: 12.56816121 | P164: 256.7713646 | Q164: 0.08995338025 | R164: -102.6725645 | S164: 14.92857104 | T164: 48.04152639 | U164: 2.438107464e-05 | V164: -550935.9416 | W164: -77941.49194 | X164: -0.7692227183 | Y164: -114626.8741 | Z164: 11769035.12 | AA164: 561006447.9 | AB164: 270.8114341 | AC164: 0.001214177313
B165: 0.149 | C165: 12332.90467 | D165: 36998.714 | E165: 30.19066804 | F165: 12391 | G165: 5652 | H165: 67404.80933 | I165: 149.8854818 | J165: 270.816992 | K165: 27.42420573 | L165: 82.27261718 | M165: 0.06713382726 | N165: 27.55339009 | O165: 12.568135 | P165: 256.8188119 | Q165: 0.09059806435 | R165: -102.6912855 | S165: 14.92861649 | T165: 48.04096202 | U165: 2.438078823e-05 | V165: -550942.2148 | W165: -77942.37941 | X165: -0.7692314771 | Y165: -114626.7438 | Z165: 11771167.68 | AA165: 561018217 | AB165: 270.816992 | AC165: 0.001222492227
B166: 0.15 | C166: 12332.80197 | D166: 36998.40592 | E166: 30.39605061 | F166: 12391 | G166: 5652 | H166: 67404.60395 | I166: 149.8847126 | J166: 270.8225509 | K166: 27.42392019 | L166: 82.27176058 | M166: 0.06759038764 | N166: 27.55333263 | O166: 12.56810879 | P166: 256.866276 | Q166: 0.09124326476 | R166: -102.7100131 | S166: 14.92866195 | T166: 48.04039761 | U166: 2.438050179e-05 | V166: -550948.4887 | W166: -77943.267 | X166: -0.7692402368 | Y166: -114626.6135 | Z166: 11773300.98 | AA166: 561029988.1 | AB166: 270.8225509 | AC166: 0.001230808658
B167: 0.151 | C167: 12332.69926 | D167: 36998.09779 | E167: 30.60147064 | F167: 12391 | G167: 5652 | H167: 67404.39853 | I167: 149.8839434 | J167: 270.8281108 | K167: 27.42363463 | L167: 82.2709039 | M167: 0.06804702945 | N167: 27.5532752 | O167: 12.56808259 | P167: 256.9137571 | Q167: 0.09188898191 | R167: -102.7287472 | S167: 14.92870741 | T167: 48.03983314 | U167: 2.438021532e-05 | V167: -550954.7634 | W167: -77944.15469 | X167: -0.7692489976 | Y167: -114626.4833 | Z167: 11775435.02 | AA167: 561041761.4 | AB167: 270.8281108 | AC167: 0.001239126605
B168: 0.152 | C168: 12332.59654 | D168: 36997.78961 | E168: 30.80692813 | F168: 12391 | G168: 5652 | H168: 67404.19307 | I168: 149.8831741 | J168: 270.8336717 | K168: 27.42334905 | L168: 82.27004714 | M168: 0.0685037527 | N168: 27.55321777 | O168: 12.5680564 | P168: 256.961255 | Q168: 0.09253521624 | R168: -102.7474879 | S168: 14.92875288 | T168: 48.03926862 | U168: 2.437992882e-05 | V168: -550961.0389 | W168: -77945.04248 | X168: -0.7692577595 | Y168: -114626.353 | Z168: 11777569.81 | AA168: 561053536.9 | AB168: 270.8336717 | AC168: 0.00124744607
B169: 0.153 | C169: 12332.49379 | D169: 36997.48137 | E169: 31.01242311 | F169: 12391 | G169: 5652 | H169: 67403.98758 | I169: 149.8824048 | J169: 270.8392337 | K169: 27.42306343 | L169: 82.26919029 | M169: 0.06896055742 | N169: 27.55316036 | O169: 12.56803021 | P169: 257.0087698 | Q169: 0.0931819682 | R169: -102.7662351 | S169: 14.92879836 | T169: 48.03870404 | U169: 2.43796423e-05 | V169: -550967.3151 | W169: -77945.93038 | X169: -0.7692665224 | Y169: -114626.2226 | Z169: 11779705.35 | AA169: 561065314.4 | AB169: 270.8392337 | AC169: 0.001255767052
B170: 0.154 | C170: 12332.39102 | D170: 36997.17307 | E170: 31.21795558 | F170: 12391 | G170: 5652 | H170: 67403.78204 | I170: 149.8816356 | J170: 270.8447967 | K170: 27.42277779 | L170: 82.26833336 | M170: 0.06941744365 | N170: 27.55310296 | O170: 12.56800403 | P170: 257.0563016 | Q170: 0.09382923822 | R170: -102.7849889 | S170: 14.92884385 | T170: 48.03813941 | U170: 2.437935575e-05 | V170: -550973.592 | W170: -77946.81838 | X170: -0.7692752863 | Y170: -114626.0923 | Z170: 11781841.63 | AA170: 561077094.1 | AB170: 270.8447967 | AC170: 0.001264089552
B171: 0.155 | C171: 12332.28824 | D171: 36996.86471 | E171: 31.42352556 | F171: 12391 | G171: 5652 | H171: 67403.57647 | I171: 149.8808663 | J171: 270.8503607 | K171: 27.42249212 | L171: 82.26747635 | M171: 0.06987441141 | N171: 27.55304557 | O171: 12.56797785 | P171: 257.1038503 | Q171: 0.09447702673 | R171: -102.8037493 | S171: 14.92888935 | T171: 48.03757472 | U171: 2.437906917e-05 | V171: -550979.8697 | W171: -77947.70649 | X171: -0.7692840512 | Y171: -114625.962 | Z171: 11783978.66 | AA171: 561088876 | AB171: 270.8503607 | AC171: 0.001272413571
B172: 0.156 | C172: 12332.18543 | D172: 36996.5563 | E172: 31.62913306 | F172: 12391 | G172: 5652 | H172: 67403.37087 | I172: 149.880097 | J172: 270.8559258 | K172: 27.42220642 | L172: 82.26661926 | M172: 0.07033146073 | N172: 27.5529882 | O172: 12.56795168 | P172: 257.1514159 | Q172: 0.09512533419 | R172: -102.8225162 | S172: 14.92893486 | T172: 48.03700999 | U172: 2.437878257e-05 | V172: -550986.1481 | W172: -77948.59471 | X172: -0.7692928172 | Y172: -114625.8317 | Z172: 11786116.44 | AA172: 561100660 | AB172: 270.8559258 | AC172: 0.00128073911
B173: 0.157 | C173: 12332.08261 | D173: 36996.24783 | E173: 31.83477809 | F173: 12391 | G173: 5652 | H173: 67403.16522 | I173: 149.8793277 | J173: 270.8614919 | K173: 27.42192069 | L173: 82.26576208 | M173: 0.07078859164 | N173: 27.55293084 | O173: 12.56792552 | P173: 257.1989984 | Q173: 0.09577416103 | R173: -102.8412897 | S173: 14.92898037 | T173: 48.0364452 | U173: 2.437849594e-05 | V173: -550992.4273 | W173: -77949.48303 | X173: -0.7693015843 | Y173: -114625.7013 | Z173: 11788254.96 | AA173: 561112446.1 | AB173: 270.8614919 | AC173: 0.001289066168
B174: 0.158 | C174: 12331.97977 | D174: 36995.93931 | E174: 32.04046067 | F174: 12391 | G174: 5652 | H174: 67402.95954 | I174: 149.8785584 | J174: 270.867059 | K174: 27.42163494 | L174: 82.26490482 | M174: 0.07124580417 | N174: 27.5528735 | O174: 12.56789936 | P174: 257.2465979 | Q174: 0.09642350769 | R174: -102.8600698 | S174: 14.9290259 | T174: 48.03588035 | U174: 2.437820928e-05 | V174: -550998.7072 | W174: -77950.37145 | X174: -0.7693103523 | Y174: -114625.571 | Z174: 11790394.23 | AA174: 561124234.3 | AB174: 270.867059 | AC174: 0.001297394747
B175: 0.159 | C175: 12331.87691 | D175: 36995.63073 | E175: 32.24618081 | F175: 12391 | G175: 5652 | H175: 67402.75382 | I175: 149.8777891 | J175: 270.8726272 | K175: 27.42134916 | L175: 82.26404748 | M175: 0.07170309836 | N175: 27.55281616 | O175: 12.56787321 | P175: 257.2942144 | Q175: 0.09707337462 | R175: -102.8788564 | S175: 14.92907143 | T175: 48.03531545 | U175: 2.437792259e-05 | V175: -551004.9878 | W175: -77951.25998 | X175: -0.7693191215 | Y175: -114625.4406 | Z175: 11792534.25 | AA175: 561136024.7 | AB175: 270.8726272 | AC175: 0.001305724846
B176: 0.16 | C176: 12331.77403 | D176: 36995.32209 | E176: 32.45193852 | F176: 12391 | G176: 5652 | H176: 67402.54806 | I176: 149.8770198 | J176: 270.8781963 | K176: 27.42106335 | L176: 82.26319006 | M176: 0.07216047422 | N176: 27.55275885 | O176: 12.56784707 | P176: 257.3418478 | Q176: 0.09772376225 | R176: -102.8976496 | S176: 14.92911697 | T176: 48.0347505 | U176: 2.437763588e-05 | V176: -551011.2692 | W176: -77952.14862 | X176: -0.7693278916 | Y176: -114625.3103 | Z176: 11794675.01 | AA176: 561147817.3 | AB176: 270.8781963 | AC176: 0.001314056467
B177: 0.161 | C177: 12331.67113 | D177: 36995.0134 | E177: 32.65773382 | F177: 12391 | G177: 5652 | H177: 67402.34227 | I177: 149.8762505 | J177: 270.8837666 | K177: 27.42077752 | L177: 82.26233255 | M177: 0.0726179318 | N177: 27.55270154 | O177: 12.56782093 | P177: 257.3894982 | Q177: 0.09837467103 | R177: -102.9164494 | S177: 14.92916252 | T177: 48.03418549 | U177: 2.437734914e-05 | V177: -551017.5514 | W177: -77953.03736 | X177: -0.7693366628 | Y177: -114625.1799 | Z177: 11796816.53 | AA177: 561159611.9 | AB177: 270.8837666 | AC177: 0.00132238961
B178: 0.162 | C178: 12331.56822 | D178: 36994.70465 | E178: 32.86356672 | F178: 12391 | G178: 5652 | H178: 67402.13643 | I178: 149.8754811 | J178: 270.8893378 | K178: 27.42049165 | L178: 82.26147496 | M178: 0.07307547111 | N178: 27.55264425 | O178: 12.56779479 | P178: 257.4371656 | Q178: 0.0990261014 | R178: -102.9352558 | S178: 14.92920808 | T178: 48.03362043 | U178: 2.437706237e-05 | V178: -551023.8343 | W178: -77953.92621 | X178: -0.7693454351 | Y178: -114625.0495 | Z178: 11798958.79 | AA178: 561171408.7 | AB178: 270.8893378 | AC178: 0.001330724276
B179: 0.163 | C179: 12331.46528 | D179: 36994.39584 | E179: 33.06943723 | F179: 12391 | G179: 5652 | H179: 67401.93056 | I179: 149.8747118 | J179: 270.8949101 | K179: 27.42020576 | L179: 82.26061729 | M179: 0.07353309219 | N179: 27.55258697 | O179: 12.56776867 | P179: 257.48485 | Q179: 0.0996780538 | R179: -102.9540688 | S179: 14.92925364 | T179: 48.03305532 | U179: 2.437677558e-05 | V179: -551030.1179 | W179: -77954.81516 | X179: -0.7693542083 | Y179: -114624.9191 | Z179: 11801101.8 | AA179: 561183207.7 | AB179: 270.8949101 | AC179: 0.001339060464
B180: 0.164 | C180: 12331.36233 | D180: 36994.08698 | E180: 33.27534537 | F180: 12391 | G180: 5652 | H180: 67401.72465 | I180: 149.8739424 | J180: 270.9004834 | K180: 27.41991985 | L180: 82.25975954 | M180: 0.07399079506 | N180: 27.5525297 | O180: 12.56774255 | P180: 257.5325513 | Q180: 0.1003305287 | R180: -102.9728883 | S180: 14.92929922 | T180: 48.03249015 | U180: 2.437648875e-05 | V180: -551036.4023 | W180: -77955.70422 | X180: -0.7693629827 | Y180: -114624.7887 | Z180: 11803245.57 | AA180: 561195008.8 | AB180: 270.9004834 | AC180: 0.001347398177
B181: 0.165 | C181: 12331.25935 | D181: 36993.77806 | E181: 33.48129114 | F181: 12391 | G181: 5652 | H181: 67401.51871 | I181: 149.8731731 | J181: 270.9060577 | K181: 27.4196339 | L181: 82.2589017 | M181: 0.07444857977 | N181: 27.55247245 | O181: 12.56771643 | P181: 257.5802697 | Q181: 0.1009835265 | R181: -102.9917145 | S181: 14.9293448 | T181: 48.03192493 | U181: 2.43762019e-05 | V181: -551042.6874 | W181: -77956.59338 | X181: -0.769371758 | Y181: -114624.6583 | Z181: 11805390.08 | AA181: 561206812.1 | AB181: 270.9060577 | AC181: 0.001355737413
B182: 0.166 | C182: 12331.15636 | D182: 36993.46909 | E182: 33.68727457 | F182: 12391 | G182: 5652 | H182: 67401.31273 | I182: 149.8724037 | J182: 270.9116331 | K182: 27.41934793 | L182: 82.25804378 | M182: 0.07490644633 | N182: 27.55241521 | O182: 12.56769032 | P182: 257.6280051 | Q182: 0.1016370477 | R182: -103.0105472 | S182: 14.92939039 | T182: 48.03135966 | U182: 2.437591503e-05 | V182: -551048.9733 | W182: -77957.48265 | X182: -0.7693805344 | Y182: -114624.5279 | Z182: 11807535.34 | AA182: 561218617.4 | AB182: 270.9116331 | AC182: 0.001364078173
B183: 0.167 | C183: 12331.05335 | D183: 36993.16006 | E183: 33.89329567 | F183: 12391 | G183: 5652 | H183: 67401.1067 | I183: 149.8716343 | J183: 270.9172095 | K183: 27.41906193 | L183: 82.25718578 | M183: 0.07536439478 | N183: 27.55235799 | O183: 12.56766422 | P183: 257.6757576 | Q183: 0.1022910926 | R183: -103.0293866 | S183: 14.929436 | T183: 48.03079433 | U183: 2.437562812e-05 | V183: -551055.2599 | W183: -77958.37203 | X183: -0.7693893119 | Y183: -114624.3974 | Z183: 11809681.36 | AA183: 561230425 | AB183: 270.9172095 | AC183: 0.001372420459
B184: 0.168 | C184: 12330.95032 | D184: 36992.85097 | E184: 34.09935444 | F184: 12391 | G184: 5652 | H184: 67400.90065 | I184: 149.8708649 | J184: 270.9227869 | K184: 27.4187759 | L184: 82.2563277 | M184: 0.07582242514 | N184: 27.55230078 | O184: 12.56763812 | P184: 257.7235271 | Q184: 0.1029456619 | R184: -103.0482326 | S184: 14.9294816 | T184: 48.03022894 | U184: 2.437534119e-05 | V184: -551061.5473 | W184: -77959.26151 | X184: -0.7693980904 | Y184: -114624.267 | Z184: 11811828.12 | AA184: 561242234.7 | AB184: 270.9227869 | AC184: 0.001380764271
B185: 0.169 | C185: 12330.84727 | D185: 36992.54182 | E185: 34.30545091 | F185: 12391 | G185: 5652 | H185: 67400.69455 | I185: 149.8700955 | J185: 270.9283654 | K185: 27.41848984 | L185: 82.25546953 | M185: 0.07628053744 | N185: 27.55224358 | O185: 12.56761203 | P185: 257.7713136 | Q185: 0.1036007558 | R185: -103.0670851 | S185: 14.92952722 | T185: 48.02966351 | U185: 2.437505423e-05 | V185: -551067.8354 | W185: -77960.15109 | X185: -0.7694068699 | Y185: -114624.1366 | Z185: 11813975.64 | AA185: 561254046.5 | AB185: 270.9283654 | AC185: 0.001389109609
B186: 0.17 | C186: 12330.74421 | D186: 36992.23262 | E186: 34.51158508 | F186: 12391 | G186: 5652 | H186: 67400.48841 | I186: 149.8693261 | J186: 270.9339449 | K186: 27.41820376 | L186: 82.25461128 | M186: 0.07673873173 | N186: 27.5521864 | O186: 12.56758595 | P186: 257.8191171 | Q186: 0.1042563749 | R186: -103.0859443 | S186: 14.92957285 | T186: 48.02909802 | U186: 2.437476724e-05 | V186: -551074.1242 | W186: -77961.04078 | X186: -0.7694156505 | Y186: -114624.0061 | Z186: 11816123.91 | AA186: 561265860.5 | AB186: 270.9339449 | AC186: 0.001397456474
B187: 0.171 | C187: 12330.64112 | D187: 36991.92336 | E187: 34.71775696 | F187: 12391 | G187: 5652 | H187: 67400.28224 | I187: 149.8685567 | J187: 270.9395255 | K187: 27.41791765 | L187: 82.25375295 | M187: 0.07719700801 | N187: 27.55212922 | O187: 12.56755987 | P187: 257.8669378 | Q187: 0.1049125196 | R187: -103.1048101 | S187: 14.92961849 | T187: 48.02853247 | U187: 2.437448023e-05 | V187: -551080.4139 | W187: -77961.93058 | X187: -0.7694244321 | Y187: -114623.8756 | Z187: 11818272.93 | AA187: 561277676.6 | AB187: 270.9395255 | AC187: 0.001405804866
B188: 0.172 | C188: 12330.53802 | D188: 36991.61405 | E188: 34.92396658 | F188: 12391 | G188: 5652 | H188: 67400.07603 | I188: 149.8677873 | J188: 270.9451071 | K188: 27.41763151 | L188: 82.25289454 | M188: 0.07765536633 | N188: 27.55207207 | O188: 12.5675338 | P188: 257.9147755 | Q188: 0.1055691903 | R188: -103.1236825 | S188: 14.92966413 | T188: 48.02796687 | U188: 2.437419319e-05 | V188: -551086.7042 | W188: -77962.82049 | X188: -0.7694332148 | Y188: -114623.7452 | Z188: 11820422.71 | AA188: 561289494.9 | AB188: 270.9451071 | AC188: 0.001414154786
B189: 0.173 | C189: 12330.43489 | D189: 36991.30468 | E189: 35.13021395 | F189: 12391 | G189: 5652 | H189: 67399.86979 | I189: 149.8670178 | J189: 270.9506897 | K189: 27.41734535 | L189: 82.25203604 | M189: 0.07811380671 | N189: 27.55201492 | O189: 12.56750774 | P189: 257.9626303 | Q189: 0.1062263875 | R189: -103.1425616 | S189: 14.92970978 | T189: 48.02740122 | U189: 2.437390612e-05 | V189: -551092.9953 | W189: -77963.7105 | X189: -0.7694419985 | Y189: -114623.6147 | Z189: 11822573.23 | AA189: 561301315.3 | AB189: 270.9506897 | AC189: 0.001422506234
B190: 0.174 | C190: 12330.33175 | D190: 36990.99525 | E190: 35.33649907 | F190: 12391 | G190: 5652 | H190: 67399.6635 | I190: 149.8662484 | J190: 270.9562733 | K190: 27.41705915 | L190: 82.25117746 | M190: 0.07857232919 | N190: 27.55195779 | O190: 12.56748168 | P190: 258.0105022 | Q190: 0.1068841116 | R190: -103.1614472 | S190: 14.92975544 | T190: 48.02683552 | U190: 2.437361902e-05 | V190: -551099.2872 | W190: -77964.60061 | X190: -0.7694507832 | Y190: -114623.4842 | Z190: 11824724.52 | AA190: 561313137.9 | AB190: 270.9562733 | AC190: 0.001430859211
B191: 0.175 | C191: 12330.22859 | D191: 36990.68577 | E191: 35.54282197 | F191: 12391 | G191: 5652 | H191: 67399.45718 | I191: 149.865479 | J191: 270.961858 | K191: 27.41677293 | L191: 82.25031879 | M191: 0.07903093379 | N191: 27.55190068 | O191: 12.56745562 | P191: 258.0583912 | Q191: 0.1075423632 | R191: -103.1803395 | S191: 14.92980111 | T191: 48.02626976 | U191: 2.43733319e-05 | V191: -551105.5798 | W191: -77965.49083 | X191: -0.769459569 | Y191: -114623.3537 | Z191: 11826876.55 | AA191: 561324962.6 | AB191: 270.961858 | AC191: 0.001439213717
B192: 0.176 | C192: 12330.12541 | D192: 36990.37623 | E192: 35.74918265 | F192: 12391 | G192: 5652 | H192: 67399.25082 | I192: 149.8647095 | J192: 270.9674437 | K192: 27.41648668 | L192: 82.24946005 | M192: 0.07948962054 | N192: 27.55184357 | O192: 12.56742958 | P192: 258.1062973 | Q192: 0.1082011426 | R192: -103.1992384 | S192: 14.92984679 | T192: 48.02570394 | U192: 2.437304475e-05 | V192: -551111.8731 | W192: -77966.38116 | X192: -0.7694683559 | Y192: -114623.2232 | Z192: 11829029.34 | AA192: 561336789.5 | AB192: 270.9674437 | AC192: 0.001447569754
B193: 0.177 | C193: 12330.02221 | D193: 36990.06663 | E193: 35.95558112 | F193: 12391 | G193: 5652 | H193: 67399.04442 | I193: 149.86394 | J193: 270.9730305 | K193: 27.41620041 | L193: 82.24860122 | M193: 0.07994838947 | N193: 27.55178648 | O193: 12.56740353 | P193: 258.1542205 | Q193: 0.1088604502 | R193: -103.218144 | S193: 14.92989248 | T193: 48.02513807 | U193: 2.437275757e-05 | V193: -551118.1672 | W193: -77967.27159 | X193: -0.7694771438 | Y193: -114623.0927 | Z193: 11831182.89 | AA193: 561348618.5 | AB193: 270.9730305 | AC193: 0.001455927321
B194: 0.178 | C194: 12329.91899 | D194: 36989.75697 | E194: 36.16201741 | F194: 12391 | G194: 5652 | H194: 67398.83798 | I194: 149.8631706 | J194: 270.9786183 | K194: 27.4159141 | L194: 82.2477423 | M194: 0.08040724061 | N194: 27.5517294 | O194: 12.5673775 | P194: 258.2021608 | Q194: 0.1095202866 | R194: -103.2370562 | S194: 14.92993818 | T194: 48.02457215 | U194: 2.437247037e-05 | V194: -551124.4621 | W194: -77968.16213 | X194: -0.7694859327 | Y194: -114622.9621 | Z194: 11833337.19 | AA194: 561360449.7 | AB194: 270.9786183 | AC194: 0.001464286419
B195: 0.179 | C195: 12329.81575 | D195: 36989.44726 | E195: 36.36849152 | F195: 12391 | G195: 5652 | H195: 67398.63151 | I195: 149.8624011 | J195: 270.9842071 | K195: 27.41562777 | L195: 82.24688331 | M195: 0.080866174 | N195: 27.55167234 | O195: 12.56735147 | P195: 258.2501183 | Q195: 0.1101806522 | R195: -103.2559751 | S195: 14.92998388 | T195: 48.02400617 | U195: 2.437218313e-05 | V195: -551130.7577 | W195: -77969.05278 | X195: -0.7694947227 | Y195: -114622.8316 | Z195: 11835492.24 | AA195: 561372283 | AB195: 270.9842071 | AC195: 0.001472647049
B196: 0.18 | C196: 12329.7125 | D196: 36989.13749 | E196: 36.57500347 | F196: 12391 | G196: 5652 | H196: 67398.425 | I196: 149.8616316 | J196: 270.989797 | K196: 27.41534141 | L196: 82.24602423 | M196: 0.08132518965 | N196: 27.55161529 | O196: 12.56732545 | P196: 258.2980929 | Q196: 0.1108415474 | R196: -103.2749005 | S196: 14.93002959 | T196: 48.02344014 | U196: 2.437189587e-05 | V196: -551137.054 | W196: -77969.94353 | X196: -0.7695035138 | Y196: -114622.7011 | Z196: 11837648.05 | AA196: 561384118.5 | AB196: 270.989797 | AC196: 0.001481009211
B197: 0.181 | C197: 12329.60922 | D197: 36988.82767 | E197: 36.78155327 | F197: 12391 | G197: 5652 | H197: 67398.21845 | I197: 149.8608621 | J197: 270.9953879 | K197: 27.41505502 | L197: 82.24516507 | M197: 0.08178428761 | N197: 27.55155826 | O197: 12.56729943 | P197: 258.3460847 | Q197: 0.1115029726 | R197: -103.2938327 | S197: 14.93007532 | T197: 48.02287406 | U197: 2.437160858e-05 | V197: -551143.3511 | W197: -77970.83439 | X197: -0.7695123058 | Y197: -114622.5705 | Z197: 11839804.62 | AA197: 561395956.1 | AB197: 270.9953879 | AC197: 0.001489372906
B198: 0.182 | C198: 12329.50593 | D198: 36988.51779 | E198: 36.98814094 | F198: 12391 | G198: 5652 | H198: 67398.01186 | I198: 149.8600926 | J198: 271.0009799 | K198: 27.41476861 | L198: 82.24430582 | M198: 0.0822434679 | N198: 27.55150123 | O198: 12.56727342 | P198: 258.3940936 | Q198: 0.1121649285 | R198: -103.3127715 | S198: 14.93012105 | T198: 48.02230792 | U198: 2.437132127e-05 | V198: -551149.649 | W198: -77971.72535 | X198: -0.769521099 | Y198: -114622.44 | Z198: 11841961.94 | AA198: 561407796 | AB198: 271.0009799 | AC198: 0.001497738133
B199: 0.183 | C199: 12329.40262 | D199: 36988.20785 | E199: 37.19476648 | F199: 12391 | G199: 5652 | H199: 67397.80523 | I199: 149.859323 | J199: 271.0065728 | K199: 27.41448217 | L199: 82.2434465 | M199: 0.08270273054 | N199: 27.55144422 | O199: 12.56724742 | P199: 258.4421197 | Q199: 0.1128274153 | R199: -103.3317169 | S199: 14.93016679 | T199: 48.02174173 | U199: 2.437103393e-05 | V199: -551155.9476 | W199: -77972.61642 | X199: -0.7695298931 | Y199: -114622.3094 | Z199: 11844120.03 | AA199: 561419637.9 | AB199: 271.0065728 | AC199: 0.001506104895
B200: 0.184 | C200: 12329.29929 | D200: 36987.89786 | E200: 37.40142992 | F200: 12391 | G200: 5652 | H200: 67397.59857 | I200: 149.8585535 | J200: 271.0121669 | K200: 27.41419569 | L200: 82.24258708 | M200: 0.08316207558 | N200: 27.55138723 | O200: 12.56722142 | P200: 258.490163 | Q200: 0.1134904335 | R200: -103.350669 | S200: 14.93021254 | T200: 48.02117548 | U200: 2.437074656e-05 | V200: -551162.247 | W200: -77973.5076 | X200: -0.7695386884 | Y200: -114622.1788 | Z200: 11846278.86 | AA200: 561431482 | AB200: 271.0121669 | AC200: 0.001514473191
... 2050 more rows
